Workbook

Sheet Table 1
A1: TABLE 1: | C1: Registrations* and timeliness** reported by registries as at 31/03/11
L2: 2009 Numbers | N2: 2009 | O2: Population
A3: Registry | C3: 2000 | D3: 2001 | E3: 2002 | F3: 2003 | G3: 2004 | H3: 2005 | I3: 2006 | J3: 2007 | K3: 2008 | L3: Initial £ | M3: ONS ready £ | N3: % ONS ready*** | O3: 2009 (for new areas) ^
A4: England (total) | C4: =SUM(C5:C12) -> 229665 | D4: =SUM(D5:D12) -> 233473 | E4: 232911 | F4: 237664 | G4: 243068 | H4: 247427 | I4: 253066 | J4: 255203 | K4: 262748 | L4: 607 | M4: 265655 | N4: =M4/((I4+J4+K4)/3)*100 -> 103.3654251 | O4: =SUM(O5:O12) -> 51809000
B5: Eastern ^ | C5: 25205 | D5: 25420 | E5: 25710 | F5: 26084 | G5: 26529 | H5: 27301 | I5: 27949 | J5: 28274 | K5: 29811 | L5: 0 | M5: 29618 | N5: 103.2777739 | O5: 5767000
B6: North West | C6: 31622 | D6: 32597 | E6: 31869 | F6: 32600 | G6: 33236 | H6: 33737 | I6: 34664 | J6: 34188 | K6: 36185 | L6: 0 | M6: 37517 | N6: 107.1536697 | O6: 6611000
B7: Northern & Yorkshire | C7: 32530 | D7: 33203 | E7: 33682 | F7: 34193 | G7: 34080 | H7: 34913 | I7: 35621 | J7: 36229 | K7: 37163 | L7: 607 | M7: 36627 | N7: 100.7962353 | O7: 6845000
B8: Oxford | C8: 11543 | D8: 11758 | E8: 11738 | F8: 11941 | G8: 12715 | H8: 12419 | I8: 12787 | J8: 12976 | K8: 13690 | L8: 0 | M8: 14174 | N8: 107.7788761 | O8: 2909000
B9: South & West | C9: 34027 | D9: 35944 | E9: 35537 | F9: 36518 | G9: 37893 | H9: 38739 | I9: 39597 | J9: 39547 | K9: 39784 | L9: 0 | M9: 39479 | N9: 99.58714516 | O9: 7101000
B10: Thames ^ | C10: 47461 | D10: 47140 | E10: 46665 | F10: 47436 | G10: 47939 | H10: 48925 | I10: 49607 | J10: 50527 | K10: 51542 | L10: 0 | M10: 52507 | N10: 103.853609 | O10: 12094000
B11: Trent | C11: 22971 | D11: 22992 | E11: 22728 | F11: 23444 | G11: 24655 | H11: 25232 | I11: 25762 | J11: 26526 | K11: 27319 | L11: 0 | M11: 28221 | N11: 106.3512003 | O11: 5051000
B12: West Midlands | C12: 24306 | D12: 24419 | E12: 24982 | F12: 25448 | G12: 26021 | H12: 26161 | I12: 27079 | J12: 26936 | K12: 27254 | L12: 0 | M12: 27512 | N12: 101.55902 | O12: 5431000
A13: Scotland | C13: 26160 | D13: 26138 | E13: 26709 | F13: 27027 | G13: 27721 | H13: 27297 | I13: 27799 | J13: 28560 | K13: 29217 | L13: 3617 | M13: 26599 | N13: 93.24693839 | O13: 5169000
A14: Wales | C14: 15508 | D14: 15752 | E14: 15905 | F14: 16323 | G14: 16894 | H14: 16710 | I14: 17345 | J14: 17502 | K14: 17853 | L14: 0 | M14: 17852 | N14: 101.6242884 | O14: 2999000
A15: Northern Ireland | C15: 6517 | D15: 6573 | E15: 6803 | F15: 7052 | G15: 7197 | H15: 7254 | I15: 7478 | J15: 7946 | K15: 8230 | L15: 0 | M15: 8209 | N15: 104.1134692 | O15: 1775000
A16: UK Total | C16: =SUM(C5:C15) -> 277850 | D16: 281936 | E16: 282328 | F16: 288066 | G16: 294880 | H16: 298688 | I16: 305688 | J16: 309211 | K16: 318048 | L16: 4224 | M16: 318315 | N16: =M16/((I16+J16+K16)/3)*100 -> 102.3579046 | O16: =SUM(O5:O15) -> 61752000
M17: Target: | N17: 100%**
A18: * All invasive cases excluding non-melanoma skin cancer
A19: ** For the English and Welsh Registries, all cases diagnosed in a given calendar year should have been completed, entered onto the registry computer system and sent to ONS within 15 months of the end of the calendar year.
A20: Additionally, Wales will have a target of 100% completeness within 12 months of the end of the calendar year
A21: ***The percentage classified as being ONS Ready is compared to the average number of registrations in 2006-2008
A22: £ Initial covers cases where not all the basic information has been received or validity has not been confirmed. ONS ready is defined as "of a standard usable for analysis and in publications"
A23: subsequently cancel/amend on their own database but have not yet sent these changes through to ONS
A24: ^ Population defined using Lower Super Output Area populations for 2009 on UKACR website www.ukacr.org to the nearest thousand
A26: All subsequent tables report on the diagnosis year 2009 and Scotland report on the diagnosis year 2008 unless otherwise stated.
A28: Note: Even in cancer registries which rely on active notification of cases, cancer incidence figures do not reach stability for some years after the end of a given year because of a small but steady stream of late registrations, some
A29: of which first come to the attention of the registry through death certification

Sheet Tables1_2_3
A1: Standard Proforma for Reporting Registry Performance
C3: red text | D3: UK/England do not meet target
D4: Strange compared to UK/England
D5: Target/Expected value not met
A6: All xnmsc unless stated
A7: Table No. & Parameters | B7: Target /Expected Value | C7: UK Av | D7: England Average | E7: ECRIC | F7: NWCIS | G7: NYCRIS | H7: OCIU | I7: SWCIS | J7: Thames | K7: Trent | L7: WMCIU | M7: Scotland | N7: WCISU | O7: NICR
A8: Table 1 Registrations and timeliness
A9: % ONS ready | B9: 100% +2% | C9: 102.3579046 | D9: 103.3654251 | E9: 103.2777739 | F9: 107.1536697 | G9: 100.7962353 | H9: 107.7788761 | I9: 99.58714516 | J9: 103.853609 | K9: 106.3512003 | L9: 101.55902 | M9: 93.24693839 | N9: 101.6242884 | O9: 104.1134692
A10: Table 2A % change in registrations - males
A11: Lung | B11: 95% CI | C11: =(SUM(E11:O11))/11 -> -1.481818182 | D11: =(SUM(E11:L11))/8 -> -1.0375 | E11: -2.2 | F11: 1.5 | G11: -2.9 | H11: 6.2 | I11: -6.9 | J11: -3 | K11: 0.5 | L11: -1.5 | M11: -2.1 | N11: -3.1 | O11: -2.8
A12: Melanoma of skin | B12: 95% CI | C12: 10.88181818 | D12: 10.3 | E12: 7.3 | F12: 22.5 | G12: 10.3 | H12: 10.1 | I12: 1.4 | J12: 5.9 | K12: 7.7 | L12: 17.2 | M12: 20.2 | N12: 10.9 | O12: 6.2
A13: Colorectal | B13: 95% CI | C13: 5.509090909 | D13: 5.3625 | E13: 8.1 | F13: 2.9 | G13: 1.3 | H13: 7 | I13: 7.6 | J13: 4.6 | K13: 9.8 | L13: 1.6 | M13: 10.5 | N13: 9.2 | O13: -2
A14: Prostate | B14: 95% CI | C14: 8.190909091 | D14: 8.575 | E14: 12.2 | F14: 10.2 | G14: 7.5 | H14: 8 | I14: 2.1 | J14: 13.6 | K14: 11 | L14: 4 | M14: 5.7 | N14: 0.1 | O14: 15.7
A15: Bladder | B15: 95% CI | C15: 1.754545455 | D15: 3.2625 | E15: 2.8 | F15: 7.3 | G15: -0.5 | H15: 21.1 | I15: -1.7 | J15: -3.2 | K15: -2.9 | L15: 3.2 | M15: 0.4 | N15: -15.9 | O15: 8.7
A16: Haematology | B16: 95% CI | C16: 8.872727273 | D16: 10.875 | E16: 6.5 | F16: 16.1 | G16: 12.1 | H16: 12.3 | I16: 3.2 | J16: 8.2 | K16: 11.7 | L16: 16.9 | M16: -0.4 | N16: 3 | O16: 8
A17: All xnmsc | B17: 95% CI | C17: 4.490909091 | D17: 5.125 | E17: 5.3 | F17: 7.9 | G17: 3.3 | H17: 9.5 | I17: 0.6 | J17: 4.5 | K17: 7.5 | L17: 2.4 | M17: 4.4 | N17: 0.5 | O17: 3.5
A18: Table 2B % change in registrations - females
A19: Lung | B19: 95% CI | C19: 3.281818182 | D19: 2.9125 | E19: 2.9 | F19: 6.9 | G19: 5.1 | H19: 10.1 | I19: 0.6 | J19: 0.7 | K19: -1.4 | L19: -1.6 | M19: 6.6 | N19: -3 | O19: 9.2
A20: Breast Invasive | B20: 95% CI | C20: 3.118181818 | D20: 2.325 | E20: 2.4 | F20: 3.1 | G20: 2 | H20: 4.1 | I20: -2 | J20: 4.9 | K20: 4.1 | L20: 0 | M20: 4.4 | N20: 2.5 | O20: 8.8
A21: Breast In Situ | B21: 95% CI | C21: 4.190909091 | D21: 3.3625 | E21: -2.1 | F21: 21.7 | G21: -8.4 | H21: 8.3 | I21: -3 | J21: -3.6 | K21: 16.3 | L21: -2.3 | M21: 5 | N21: 4.5 | O21: 9.7
A22: Cervix Invasive | B22: 95% CI | C22: 13.76363636 | D22: 15.425 | E22: 16 | F22: 42.6 | G22: -0.7 | H22: 12.2 | I22: 8.9 | J22: 16.7 | K22: 17.3 | L22: 10.4 | M22: 6 | N22: 11.4 | O22: 10.6
A23: Cervix In Situ | B23: 95% CI | C23: 30.21818182 | D23: 27.2625 | E23: 20.7 | F23: 26.1 | G23: 28.3 | H23: 40.1 | I23: 26.3 | J23: 24 | K23: 24.9 | L23: 27.7 | M23: 3.3 | N23: 64.2 | O23: 46.8
A24: Melanoma of skin | B24: 95% CI | C24: 7.754545455 | D24: 4.5375 | E24: 11.8 | F24: 6.2 | G24: 10 | H24: 4 | I24: -5.1 | J24: 9.3 | K24: -6.3 | L24: 6.4 | M24: 20.5 | N24: 20.8 | O24: 7.7
A25: Colorectal | B25: 95% CI | C25: 2.6 | D25: 2.9375 | E25: 2.1 | F25: 4.9 | G25: 1.1 | H25: 4.4 | I25: -0.4 | J25: -1 | K25: 5.4 | L25: 7 | M25: 7.4 | N25: 5.2 | O25: -7.5
A26: Bladder | B26: 95% CI | C26: 0.5090909091 | D26: -1.95 | E26: 3.8 | F26: -8.2 | G26: -12.5 | H26: 16.8 | I26: -3.5 | J26: -6.8 | K26: -8.6 | L26: 3.4 | M26: 9.9 | N26: -14.3 | O26: 25.6
A27: Haematology | B27: 95% CI | C27: 6.190909091 | D27: 8.6125 | E27: -4.2 | F27: 19.2 | G27: 5.1 | H27: 14.7 | I27: 4.3 | J27: 6.5 | K27: 17 | L27: 6.3 | M27: -3.5 | N27: -1.7 | O27: 4.4
A28: All xnmsc | B28: 95% CI | C28: 3.627272727 | D28: 3.4625 | E28: 1.2 | F28: 6.4 | G28: 6.3 | H28: 6.1 | I28: -1.4 | J28: 3.2 | K28: 5.2 | L28: 0.7 | M28: 5.1 | N28: 2.8 | O28: 4.3
A29: Table 2C Childhood cancer incidence rates
A30: Age 0-4
A31: M | B31: 20.05298795 | C31: 17.71530574 | D31: 17.23511173 | E31: 15 | F31: 19 | G31: 17.59 | H31: 11.3 | I31: 21.5 | J31: 16.13710847 | K31: 25.35378539 | L31: 12 | M31: 22.04585538 | N31: 20.54161389 | O31: 14.4
A32: F | B32: 16.97111736 | C32: 19.71790419 | D32: 19.5742469 | E32: 24 | F32: 20.1 | G32: 19.93 | H32: 21.5 | I32: 16.8 | J32: 18.63905105 | K32: 18.92492413 | L32: 16.7 | M32: 20.31635467 | N32: 21.5866163 | O32: 18.4
A33: Age 5-9
A34: M | B34: 11.4103074 | C34: 12.39721642 | D34: 11.79039418 | E34: 14.4 | F34: 11.7 | G34: 12.31 | H34: 10.1 | I34: 8.9 | J34: 12.92962263 | K34: 14.58353082 | L34: 9.4 | M34: 13.79901373 | N34: 14.44721349 | O34: 13.8
A35: F | B35: 8.911543846 | C35: 8.788517075 | D35: 8.253559164 | E35: 8.2 | F35: 11.2 | G35: 8.99 | H35: 5.9 | I35: 7.2 | J35: 10.44377074 | K35: 6.89470257 | L35: 7.2 | M35: 14.41698473 | N35: 8.928229787 | O35: 7.3
A36: Age 10-14
A37: M | B37: 12.03877459 | C37: 12.88275018 | D37: 13.4771696 | E37: 15.1 | F37: 11.6 | G37: 11.39 | H37: 15.2 | I37: 13.4 | J37: 12.56589791 | K37: 17.3614589 | L37: 11.2 | M37: 7.874015748 | N37: 5.418879376 | O37: 20.6
A38: F | B38: 10.2966731 | C38: 12.20431725 | D38: 10.86262643 | E38: 8.9 | F38: 6.7 | G38: 9.84 | H38: 10.4 | I38: 13 | J38: 13.07114044 | K38: 16.889871 | L38: 8.1 | M38: 12.38356014 | N38: 14.86291816 | O38: 20.1
A39: Table 2D % death certificate only (males & females)
A40: Lung | B40: 3.257180473 | C40: 2.181818182 | D40: 2.3375 | E40: 0.1 | F40: 5.5 | G40: 1.6 | H40: 3.2 | I40: 2.5 | J40: 3.4 | K40: 1.7 | L40: 0.7 | M40: 0.2 | N40: 4.9 | O40: 0.2
A41: Breast Invasive | B41: 0.6532675447 | C41: 0.5090909091 | D41: 0.575 | E41: 0 | F41: 1.2 | G41: 0.3 | H41: 0.7 | I41: 0.7 | J41: 0.7 | K41: 0.8 | L41: 0.2 | M41: 0.1 | N41: 0.8 | O41: 0.1
A42: Cervix Invasive | B42: 0.5396451551 | C42: 0.5090909091 | D42: 0.6375 | E42: 0 | F42: 1.2 | G42: 0.1 | H42: 0.8 | I42: 0.3 | J42: 0.8 | K42: 1.2 | L42: 0.7 | M42: 0 | N42: 0.5 | O42: 0
A43: Melanoma of skin | B43: 0.2118336469 | C43: 0.1454545455 | D43: 0.1625 | E43: 0 | F43: 0.4 | G43: 0.1 | H43: 0.3 | I43: 0.2 | J43: 0.2 | K43: 0.1 | L43: 0 | M43: 0 | N43: 0.3 | O43: 0
A44: Colorectal | B44: 1.470317965 | C44: 1.254545455 | D44: 1.3375 | E44: 0.1 | F44: 2.7 | G44: 0.8 | H44: 1.7 | I44: 1.5 | J44: 1.8 | K44: 1.3 | L44: 0.8 | M44: 0.3 | N44: 2.6 | O44: 0.2
A45: Prostate | B45: 1.15441348 | C45: 0.9363636364 | D45: 1.0625 | E45: 0 | F45: 2.1 | G45: 0.5 | H45: 1.6 | I45: 0.9 | J45: 0.7 | K45: 2 | L45: 0.7 | M45: 0.1 | N45: 1.5 | O45: 0.2
A46: Bladder | B46: 1.360340697 | C46: 1.118181818 | D46: 1.325 | E46: 0 | F46: 2.8 | G46: 0.9 | H46: 1 | I46: 2.1 | J46: 2.2 | K46: 1 | L46: 0.6 | M46: 0.4 | N46: 1.3 | O46: 0
A47: Haematology | B47: 2.059458862 | C47: 1.309090909 | D47: 1.5 | E47: 0 | F47: 2.8 | G47: 0.7 | H47: 1.8 | I47: 1.4 | J47: 1.6 | K47: 2.4 | L47: 1.3 | M47: 0.3 | N47: 2.1 | O47: 0
A48: III-defined sites | B48: 8.306324106 | C48: 7.2 | D48: 7.9 | E48: 0 | F48: 16.9 | G48: 3.7 | H48: 13.2 | I48: 9.9 | J48: 7.3 | K48: 8.4 | L48: 3.8 | M48: 3.5 | N48: 12.3 | O48: 0.2
A49: All xnmsc Male | B49: 2 | C49: 1.354545455 | D49: 1.4875 | E49: 0 | F49: 3.3 | G49: 0.9 | H49: 2 | I49: 1.4 | J49: 1.7 | K49: 1.9 | L49: 0.7 | M49: 0.4 | N49: 2.4 | O49: 0.2
A50: All xnmsc Female | B50: 2 | C50: 1.545454545 | D50: 1.6625 | E50: 0 | F50: 3.3 | G50: 1 | H50: 2.5 | I50: 1.9 | J50: 2 | K50: 1.9 | L50: 0.7 | M50: 0.5 | N50: 3 | O50: 0.2
A51: All xnmsc M<75 | B51: 0.9207807073 | C51: 0.6 | D51: 0.6375 | E51: 0 | F51: 1.5 | G51: 0.5 | H51: 0.7 | I51: 0.5 | J51: 0.9 | K51: 0.8 | L51: 0.2 | M51: 0.2 | N51: 1.2 | O51: 0.1
A52: All xnmsc M>=75 | B52: 3.606352511 | C52: 2.654545455 | D52: 3 | E52: 0.1 | F52: 6.4 | G52: 1.7 | H52: 4.4 | I52: 2.9 | J52: 3.1 | K52: 3.8 | L52: 1.6 | M52: 0.7 | N52: 4.4 | O52: 0.1
A53: All xnmsc F<75 | B53: 0.6576140919 | C53: 0.4363636364 | D53: 0.4625 | E53: 0 | F53: 1.1 | G53: 0.3 | H53: 0.4 | I53: 0.4 | J53: 0.8 | K53: 0.6 | L53: 0.1 | M53: 0.1 | N53: 1 | O53: 0
A54: All xnmsc F>=75 | B54: 4.520729491 | C54: 3.572727273 | D54: 3.9375 | E54: 0 | F54: 7.4 | G54: 2.2 | H54: 6.8 | I54: 4.4 | J54: 4.4 | K54: 4.4 | L54: 1.9 | M54: 1.1 | N54: 6.5 | O54: 0.2
A55: Table 2E % death certificate only (males & females) for previous diagnosis year
A56: Lung | B56: 3.257180473 | C56: 2.872727273 | D56: 3.2125 | E56: 0 | F56: 11.2 | G56: 2.2 | H56: 3.2 | I56: 2.8 | J56: 2.9 | K56: 1.1 | L56: 2.3 | M56: 0.7 | N56: 4.5 | O56: 0.7
A57: Breast Invasive | B57: 0.6532675447 | C57: 0.6727272727 | D57: 0.75 | E57: 0 | F57: 2.1 | G57: 0.5 | H57: 0.4 | I57: 0.7 | J57: 0.9 | K57: 0.8 | L57: 0.6 | M57: 0.4 | N57: 0.8 | O57: 0.2
A58: Cervix Invasive | B58: 0.5396451551 | C58: 0.3818181818 | D58: 0.45 | E58: 0 | F58: 1.8 | G58: 0 | H58: 0 | I58: 0.3 | J58: 0.7 | K58: 0.8 | L58: 0 | M58: 0 | N58: 0.6 | O58: 0
A59: Melanoma of skin | B59: 0.2118336469 | C59: 0.1363636364 | D59: 0.125 | E59: 0 | F59: 0.3 | G59: 0 | H59: 0 | I59: 0.1 | J59: 0.3 | K59: 0.3 | L59: 0 | M59: 0 | N59: 0.5 | O59: 0
A60: Colorectal | B60: 1.470317965 | C60: 1.409090909 | D60: 1.5875 | E60: 0 | F60: 4.6 | G60: 0.9 | H60: 1.9 | I60: 1.9 | J60: 1.6 | K60: 1 | L60: 0.8 | M60: 0.5 | N60: 2 | O60: 0.3
A61: Prostate | B61: 1.15441348 | C61: 1.090909091 | D61: 1.2375 | E61: 0 | F61: 3.8 | G61: 0.5 | H61: 0.9 | I61: 1.3 | J61: 1 | K61: 1.2 | L61: 1.2 | M61: 0.4 | N61: 1.4 | O61: 0.3
A62: Bladder | B62: 1.360340697 | C62: 1.409090909 | D62: 1.65 | E62: 0 | F62: 4.4 | G62: 0.9 | H62: 1.3 | I62: 1.1 | J62: 2 | K62: 2.4 | L62: 1.1 | M62: 0.1 | N62: 1.7 | O62: 0.5
A63: Haematology | B63: 2.059458862 | C63: 1.418181818 | D63: 1.7 | E63: 0 | F63: 4.7 | G63: 1 | H63: 1 | I63: 1.4 | J63: 1.1 | K63: 1.4 | L63: 3 | M63: 0.3 | N63: 1.5 | O63: 0.2
A64: III-defined sites | B64: 8.306324106 | C64: 8.118181818 | D64: 8.9125 | E64: 0 | F64: 22.4 | G64: 3.8 | H64: 13.7 | I64: 10.9 | J64: 5.8 | K64: 5.1 | L64: 9.6 | M64: 3.8 | N64: 13.3 | O64: 0.9
A65: All xnmsc Male | B65: 2 | C65: 1.7 | D65: 1.925 | E65: 0 | F65: 6.3 | G65: 1.2 | H65: 1.6 | I65: 1.6 | J65: 1.7 | K65: 1.3 | L65: 1.7 | M65: 0.6 | N65: 2.3 | O65: 0.4
A66: All xnmsc Female | B66: 2 | C66: 1.890909091 | D66: 2.15 | E66: 0 | F66: 6.2 | G66: 1.2 | H66: 2.2 | I66: 2.1 | J66: 2 | K66: 1.5 | L66: 2 | M66: 0.6 | N66: 2.6 | O66: 0.4
A67: All xnmsc M<75 | B67: 0.9207807073 | C67: 0.7909090909 | D67: 0.925 | E67: 0 | F67: 3.2 | G67: 0.8 | H67: 0.6 | I67: 0.7 | J67: 0.9 | K67: 0.6 | L67: 0.6 | M67: 0.3 | N67: 0.9 | O67: 0.1
A68: All xnmsc M>=75 | B68: 3.606352511 | C68: 3.254545455 | D68: 3.6625 | E68: 0 | F68: 11.9 | G68: 1.8 | H68: 3.5 | I68: 3 | J68: 3 | K68: 2.4 | L68: 3.7 | M68: 1.1 | N68: 4.5 | O68: 0.9
A69: All xnmsc F<75 | B69: 0.6576140919 | C69: 0.5636363636 | D69: 0.6375 | E69: 0 | F69: 2.3 | G69: 0.3 | H69: 0.5 | I69: 0.4 | J69: 0.6 | K69: 0.5 | L69: 0.5 | M69: 0.2 | N69: 0.8 | O69: 0.1
A70: All xnmsc F>=75 | B70: 4.520729491 | C70: 4.345454545 | D70: 4.9125 | E70: 0 | F70: 13.4 | G70: 2.7 | H70: 5.6 | I70: 5.1 | J70: 4.3 | K70: 3.5 | L70: 4.7 | M70: 1.6 | N70: 5.8 | O70: 1.1
A71: Table 2F % Zero survival (males & females)
A72: Lung | B72: 6.156322787 | C72: 4.2 | D72: 4.85 | E72: 3.3 | F72: 5.9 | G72: 2.6 | H72: 7.1 | I72: 7.1 | J72: 5.3 | K72: 4.6 | L72: 2.9 | M72: 1.2 | N72: 5.6 | O72: 0.6
A73: Breast Invasive | B73: 1.071871339 | C73: 0.7272727273 | D73: 0.8125 | E73: 0.2 | F73: 1.2 | G73: 0.5 | H73: 0.9 | I73: 1 | J73: 0.9 | K73: 1.3 | L73: 0.5 | M73: 0.2 | N73: 1.1 | O73: 0.2
A74: Cervix Invasive | B74: 0.9854100315 | C74: =(SUM(E74:O74))/11 -> 0.7818181818 | D74: =(SUM(E74:L74))/8 -> 0.9125 | E74: 0 | F74: 1.2 | G74: 0.1 | H74: 0.8 | I74: 1.1 | J74: 1 | K74: 1.8 | L74: 1.3 | M74: 0 | N74: 0.5 | O74: 0.8
A75: Melanoma of skin | B75: 0.3230136628 | C75: 0.1909090909 | D75: 0.225 | E75: 0.1 | F75: 0.4 | G75: 0.1 | H75: 0.6 | I75: 0.2 | J75: 0.3 | K75: 0.1 | L75: 0 | M75: 0 | N75: 0.3 | O75: 0
A76: Colorectal | B76: 2.875639329 | C76: 2.272727273 | D76: 2.55 | E76: 1.3 | F76: 3 | G76: 1.8 | H76: 3.7 | I76: 3 | J76: 2.8 | K76: 2.8 | L76: 2 | M76: 0.8 | N76: 3.1 | O76: 0.7
A77: Prostate | B77: 1.833936306 | C77: 1.336363636 | D77: 1.5125 | E77: 0.4 | F77: 2.1 | G77: 0.7 | H77: 2.4 | I77: 1.3 | J77: 1.3 | K77: 2.9 | L77: 1 | M77: 0.5 | N77: 1.6 | O77: 0.5
A78: Bladder | B78: 2.37315187 | C78: 1.909090909 | D78: 2.3375 | E78: 1.2 | F78: 2.8 | G78: 1.1 | H78: 3.1 | I78: 3.2 | J78: 3 | K78: 2 | L78: 2.3 | M78: 0.5 | N78: 1.8 | O78: 0
A79: Haematology | B79: 3.651729465 | C79: 2.154545455 | D79: 2.425 | E79: 0.1 | F79: 2.9 | G79: 1.8 | H79: 3.3 | I79: 2.9 | J79: 3.2 | K79: 3.2 | L79: 2 | M79: 1.1 | N79: 2.9 | O79: 0.3
A80: III-defined sites | B80: 13.57994152 | C80: 10.37272727 | D80: 11.4125 | E80: 4.7 | F80: 17.3 | G80: 7.5 | H80: 17.3 | I80: 14.6 | J80: 11.3 | K80: 12.7 | L80: 5.9 | M80: 7.1 | N80: 13.3 | O80: 2.4
A81: All xnmsc Male | B81: 3.490759572 | C81: 2.427272727 | D81: 2.7875 | E81: 1.7 | F81: 3.4 | G81: 1.7 | H81: 4.1 | I81: 3.3 | J81: 2.9 | K81: 3.4 | L81: 1.8 | M81: 1 | N81: 2.8 | O81: 0.6
A82: All xnmsc Female | B82: 3.525397298 | C82: 2.481818182 | D82: 2.7875 | E82: 1.2 | F82: 3.5 | G82: 1.7 | H82: 4.2 | I82: 3.4 | J82: 3.2 | K82: 3.3 | L82: 1.8 | M82: 1.1 | N82: 3.4 | O82: 0.5
A83: All xnmsc M<75 | B83: 1.888812472 | C83: 1.2 | D83: 1.375 | E83: 0.9 | F83: 1.6 | G83: 1 | H83: 1.7 | I83: 1.5 | J83: 1.6 | K83: 1.8 | L83: 0.9 | M83: 0.6 | N83: 1.4 | O83: 0.2
A84: All xnmsc M>=75 | B84: 6.314263058 | C84: 4.481818182 | D84: 5.25 | E84: 3 | F84: 6.7 | G84: 2.9 | H84: 8.4 | I84: 6.1 | J84: 5.3 | K84: 6.1 | L84: 3.5 | M84: 1.8 | N84: 5.1 | O84: 0.4
A85: All xnmsc F<75 | B85: 1.266450112 | C85: 0.9 | D85: 1.0125 | E85: 0.5 | F85: 1.2 | G85: 0.7 | H85: 1.2 | I85: 1.2 | J85: 1.2 | K85: 1.3 | L85: 0.8 | M85: 0.5 | N85: 1.2 | O85: 0.1
A86: All xnmsc F>=75 | B86: 7.534499224 | C86: 5.345454545 | D86: 6.1125 | E86: 2.3 | F86: 7.8 | G86: 3.7 | H86: 10.1 | I86: 7.1 | J86: 7 | K86: 7 | L86: 3.9 | M86: 2.2 | N86: 7.3 | O86: 0.4
A87: Table 2G % microscopically verified (males & females)
A88: Lung | B88: 69.43910005 | C88: 68.79788857 | D88: 68.08596818 | E88: 68.8 | F88: 62.30558 | G88: 66.91 | H88: 65.1 | I88: 69.6 | J88: 70.75008189 | K88: 67.59208356 | L88: 73.63 | M88: 69.87583961 | N88: 70.31318924 | O88: 71.9
A89: Breast Invasive | B89: 96.9662664 | C89: 97.1463482 | D89: 96.7854777 | E89: 97.8 | F89: 94.85671 | G89: 97.76 | H89: 96 | I89: 97 | J89: 96.19997625 | K89: 95.88713534 | L89: 98.78 | M89: 98.69158879 | N89: 96.93441987 | O89: 98.7
A90: Breast In Situ | B90: 100 | C90: 99.39406094 | D90: 99.44707523 | E90: 99.4 | F90: 98.07692 | G90: 100 | H90: 98.8 | I90: 100 | J90: 99.48979592 | K90: 99.80988593 | L90: 100 | M90: 99.77827051 | N90: 97.97979798 | O90: 100
A91: Cervix Invasive | B91: 96.43696736 | C91: 95.12815011 | D91: 93.78016448 | E91: 98.4 | F91: 73.63083 | G91: 97.23 | H91: 95.2 | I91: 96.5 | J91: 96.37096774 | K91: 94.87951807 | L91: 98.03 | M91: 98.3974359 | N91: 99.47089947 | O91: 98.3
A92: Cervix In Situ | B92: 100 | C92: 99.83952286 | D92: 99.85033 | E92: 100 | F92: 99.62264 | G92: 99.98 | H92: 99.2 | I92: 100 | J92: 100 | K92: 100 | L92: 100 | M92: 100 | N92: 99.43211151 | O92: 100
A93: Melanoma of skin | B93: 97.99668174 | C93: 96.80953893 | D93: 96.33289425 | E93: 99.1 | F93: 93.65198 | G93: 98.07 | H93: 90.4 | I93: 98.1 | J93: 96.0106383 | K93: 95.87053571 | L93: 99.46 | M93: 99.83093829 | N93: 95.51083591 | O93: 98.9
A94: Colorectal | B94: 89.3988238 | C94: 89.18539507 | D94: 88.47964843 | E94: 91.5 | F94: 87.33062 | G94: 88.95 | H94: 86.3 | I94: 89.8 | J94: 86.34498605 | K94: 87.75158137 | L94: 89.86 | M94: 91.42270159 | N94: 88.87945671 | O94: 92.9
A95: Prostate | B95: 89.40597956 | C95: 88.24739826 | D95: 87.3806707 | E95: 86.6 | F95: 87.45125 | G95: 87.25 | H95: 88.1 | I95: 88.7 | J95: 86.16694584 | K95: 82.37716976 | L95: 92.4 | M95: 88.28571429 | N95: 89.590301 | O95: 93.8
A96: Bladder | B96: 90.10627459 | C96: 88.41786632 | D96: 88.16375494 | E96: 94.5 | F96: 89.57726 | G96: 90.09 | H96: 76.9 | I96: 91.3 | J96: 82.51959011 | K96: 87.04318937 | L96: 93.38 | M96: 91.69960474 | N96: 82.78688525 | O96: 92.8
A97: Haematology | B97: 87.56870809 | C97: 86.55544473 | D97: 86.89001274 | E97: 93.7 | F97: 57.33292 | G97: 91.39 | H97: 91.7 | I97: 91.1 | J97: 88.61741322 | K97: 89.8997687 | L97: 91.38 | M97: 95.59659091 | N97: 77.79319917 | O97: 83.6
A98: All xnmsc Male | B98: 83.83777545 | C98: 83.28587535 | D98: 82.83206934 | E98: 85.2 | F98: 77.12514 | G98: 83.42 | H98: 81.5 | I98: 84.9 | J98: 82.54611568 | K98: 81.01529903 | L98: 86.95 | M98: 84.28439782 | N98: 82.30367631 | O98: 86.9
A99: All xnmsc Female | B99: 85.48198552 | C99: 85.34494221 | D99: 84.9795245 | E99: 87.3 | F99: 78.40719 | G99: 89.41 | H99: 82.7 | I99: 85.5 | J99: 84.71615721 | K99: 83.77284878 | L99: 88.03 | M99: 85.94308405 | N99: 84.31508432 | O99: 88.7
A100: Table 2H % Non-specificity of morphology codes for cases which are microscopically verified
A101: Lung | B101: 6.956243285 | C101: 6.870621502 | D101: 4.380458995 | E101: 4.6 | F101: 4.640235 | G101: 2.6 | H101: 9.4 | I101: 0.2 | J101: 5.740740741 | K101: 4.432696218 | L101: 3.43 | M101: 3.00029129 | N101: 15.43287327 | O101: 22.1
A102: Breast Invasive | B102: 3.567925388 | C102: 3.16622455 | D102: 2.487789683 | E102: 2.4 | F102: 3.541417 | G102: 1.91 | H102: 3.9 | I102: 2.1 | J102: 2.172571287 | K102: 2.668329177 | L102: 1.21 | M102: 2.864583333 | N102: 1.961569255 | O102: 10.1
A103: Breast In Situ | B103: 1.682608372 | C103: 1.016347585 | D103: 0.8489670476 | E103: 0.18 | F103: 1.960784 | G103: 0.67 | H103: 1.2 | I103: 2.4 | J103: 0 | K103: 0.380952381 | L103: 0 | M103: 0.4444444444 | N103: 0.3436426117 | O103: 3.6
A104: Cervix Invasive | B104: 2.278033374 | C104: 1.943924966 | D104: 2.13348488 | E104: 0 | F104: 4.958678 | G104: 2.07 | H104: 2.5 | I104: 3.4 | J104: 0.8368200837 | K104: 0.9523809524 | L104: 2.35 | M104: 0.651465798 | N104: 1.063829787 | O104: 2.6
A105: Cervix In Situ | B105: 0.2616141612 | C105: 1.282358195 | D105: 1.758536193 | E105: 0.033 | F105: 13.6708 | G105: 0 | H105: 0 | I105: 0.2 | J105: 0.07523039308 | K105: 0.08925914906 | L105: 0 | M105: 0.03765060241 | N105: 0 | O105: 0
A106: Melanoma of skin | B106: 0.00303030303 | C106: 0.009090909091 | D106: 0.0125 | E106: 0 | F106: 0 | G106: 0 | H106: 0 | I106: 0.1 | J106: 0 | K106: 0 | L106: 0 | M106: 0 | N106: 0 | O106: 0
A107: Colorectal | B107: 2.337946551 | C107: 2.478821326 | D107: 2.544298161 | E107: 1.6 | F107: 3.878976 | G107: 1.34 | H107: 6.1 | I107: 1.8 | J107: 3.079262498 | K107: 1.376146789 | L107: 1.18 | M107: 0.9550561798 | N107: 5.157593123 | O107: 0.8
A108: Prostate | B108: 1.77302835 | C108: 1.565028384 | D108: 1.072262453 | E108: 0.7 | F108: 2.177335 | G108: 0.18 | H108: 1.6 | I108: 0 | J108: 1.36076462 | K108: 2 | L108: 0.56 | M108: 1.577669903 | N108: 6.859542697 | O108: 0.2
A109: Bladder | B109: 2.658333773 | C109: 3.477694819 | D109: 3.99905753 | E109: 0.95 | F109: 17.81936 | G109: 2.02 | H109: 4.6 | I109: 2.3 | J109: 2.045288532 | K109: 1.017811705 | L109: 1.24 | M109: 1.005747126 | N109: 4.356435644 | O109: 0.9
A110: Haematology | B110: 4.872154112 | C110: 3.510915783 | D110: 2.404040937 | E110: 0 | F110: 2.320561 | G110: 0.69 | H110: 2 | I110: 4.3 | J110: 4.09190372 | K110: 4.759862779 | L110: 1.07 | M110: 1.238236751 | N110: 4.549509367 | O110: 13.6
A111: All xnmsc Male | B111: 3.7777717 | C111: 3.722673833 | D111: 3.079650499 | E111: 2.6 | F111: 5.356647 | G111: 1.16 | H111: 4.7 | I111: 2.4 | J111: 3.404762997 | K111: 3.055793991 | L111: 1.96 | M111: 2.153069807 | N111: 7.559138364 | O111: 6.6
A112: All xnmsc Female | B112: 4.458295061 | C112: 4.371735565 | D112: 3.478752001 | E112: 3.2 | F112: 5.283923 | G112: 1.94 | H112: 4.8 | I112: 3.6 | J112: 3.418339664 | K112: 3.587753342 | L112: 2 | M112: 2.702910827 | N112: 6.356164384 | O112: 11.2
A113: Table 2I Mortality : Incidence ratios
A114: Lung | B114: 0.8579583147 | C114: 0.8392135216 | D114: 0.8358492555 | E114: 0.85 | F114: 0.84 | G114: 0.82 | H114: 0.77 | I114: 0.9 | J114: 0.825908942 | K114: 0.8108851017 | L114: 0.87 | M114: 0.8440871158 | N114: 0.8204675783 | O114: 0.88
A115: Breast Invasive | B115: 0.2621511225 | C115: 0.2409897398 | D115: 0.2419857948 | E115: 0.26 | F115: 0.24 | G115: 0.24 | H115: 0.23 | I115: 0.24 | J115: 0.2401140007 | K115: 0.2357723577 | L115: 0.25 | M115: 0.2341121495 | N115: 0.2308886302 | O115: 0.25
A116: Cervix Invasive | B116: 0.3336565822 | C116: 0.2686718695 | D116: 0.2670181937 | E116: 0.24 | F116: 0.3 | G116: 0.3 | H116: 0.25 | I116: 0.28 | J116: 0.2802419355 | K116: 0.2259036145 | L116: 0.26 | M116: 0.3429487179 | N116: 0.2962962963 | O116: 0.18
A117: Melanoma of skin | B117: 0.1820053558 | C117: 0.1719089788 | D117: 0.1728332779 | E117: 0.18 | F117: 0.15 | G117: 0.17 | H117: 0.14 | I117: 0.18 | J117: 0.1829787234 | K117: 0.1796875 | L117: 0.2 | M117: 0.1563820795 | N117: 0.1919504644 | O117: 0.16
A118: Colorectal | B118: 0.4167613853 | C118: 0.390018102 | D118: 0.3846520701 | E118: 0.39 | F118: 0.38 | G118: 0.39 | H118: 0.37 | I118: 0.38 | J118: 0.4186771705 | K118: 0.3585393905 | L118: 0.39 | M118: 0.3993323061 | N118: 0.4036502547 | O118: 0.41
A119: Prostate | B119: 0.2746249157 | C119: 0.2510982448 | D119: 0.2566686508 | E119: 0.24 | F119: 0.26 | G119: 0.26 | H119: 0.25 | I119: 0.27 | J119: 0.2438581798 | K119: 0.2694910268 | L119: 0.26 | M119: 0.2821428571 | N119: 0.2265886288 | O119: 0.2
A120: Bladder | B120: 0.4796551832 | C120: 0.4745140105 | D120: 0.4689357381 | E120: 0.45 | F120: 0.4 | G120: 0.46 | H120: 0.39 | I120: 0.53 | J120: 0.4876431585 | K120: 0.5138427464 | L120: 0.52 | M120: 0.5652173913 | N120: 0.4229508197 | O120: 0.48
A121: Haematology | B121: 0.4720614767 | C121: 0.4164536347 | D121: 0.4156225695 | E121: 0.46 | F121: 0.38 | G121: 0.46 | H121: 0.37 | I121: 0.42 | J121: 0.3986814039 | K121: 0.3962991519 | L121: 0.44 | M121: 0.4668560606 | N121: 0.4191533657 | O121: 0.37
A122: All xnmsc Male | B122: 0.5257460078 | C122: 0.4968043966 | D122: 0.4933288115 | E122: 0.49 | F122: 0.5 | G122: 0.5 | H122: 0.45 | I122: 0.5 | J122: 0.4849058748 | K122: 0.4917246175 | L122: 0.53 | M122: 0.5454029914 | N122: 0.4828148793 | O122: 0.49
A123: All xnmsc Female | B123: 0.4908687258 | C123: 0.4622604008 | D123: 0.4595253781 | E123: 0.47 | F123: 0.47 | G123: 0.48 | H123: 0.41 | I123: 0.46 | J123: 0.4514670957 | K123: 0.4547359295 | L123: 0.48 | M123: 0.4913964262 | N123: 0.4572649573 | O123: 0.46
A124: Table 3A Completeness of the dataset - demographics and diagnostic details
A125: Patient's name | B125: 100 | C125: 100 | D125: 100 | E125: 100 | F125: 100 | G125: 100 | H125: 100 | I125: 100 | J125: 100 | K125: 100 | L125: 100 | M125: 100 | N125: 100 | O125: 100
A126: Patient's address | B126: 100 | C126: 99.90696197 | D126: 99.8845727 | E126: 100 | F126: 100 | G126: 99.99 | H126: 100 | I126: 100 | J126: 99.55053612 | K126: 99.5960455 | L126: 99.94 | M126: 100 | N126: 100 | O126: 99.9
A127: Sex | B127: 100 | C127: 100 | D127: 100 | E127: 100 | F127: 100 | G127: 100 | H127: 100 | I127: 100 | J127: 100 | K127: 100 | L127: 100 | M127: 100 | N127: 100 | O127: 100
A128: Ethnicity | B128: 47.65606723 | C128: 54.24887695 | D128: 68.76100351 | E128: 69.1 | F128: 86.2 | G128: 48.62 | H128: 68.6 | I128: 76.93 | J128: 35.4371798 | K128: 86.8608483 | L128: 78.34 | M128: 15.94961837 | N128: 30.7 | O128: 0
A129: Date of death (where dead) | B129: 100 | C129: 100 | D129: 100 | E129: 100 | F129: 100 | G129: 100 | H129: 100 | I129: 100 | J129: 100 | K129: 100 | L129: 100 | M129: 100 | N129: 100 | O129: 100
A130: Postcode | B130: 100 | C130: 99.79909091 | D130: 99.98625 | E130: 100 | F130: 100 | G130: 100 | H130: 100 | I130: 100 | J130: 100 | K130: 100 | L130: 99.89 | M130: 100 | N130: 100 | O130: 97.9
A131: Date of birth | B131: 100 | C131: 100 | D131: 100 | E131: 100 | F131: 100 | G131: 100 | H131: 100 | I131: 100 | J131: 100 | K131: 100 | L131: 100 | M131: 100 | N131: 100 | O131: 100
A132: Unique health identifier | B132: 99 | C132: 99.66601989 | D132: 99.82683401 | E132: 99.9 | F132: 99.9 | G132: 99.95 | H132: 99.9 | I132: 99.93 | J132: 99.20010665 | K132: 99.96456539 | L132: 99.87 | M132: 99.9315467 | N132: 99.98 | O132: 97.8
A133: Anniversary (diagnosis) date | B133: 100 | C133: 99.84707121 | D133: 99.78972292 | E133: 100 | F133: 100 | G133: 99.76 | H133: 100 | I133: 100 | J133: 98.76778334 | K133: 100 | L133: 99.79 | M133: 100 | N133: 100 | O133: 100
A134: Site of primary growth | B134: 96.32269207 | C134: 96.6772651 | D134: 96.75137163 | E134: 97.8 | F134: 95.8 | G134: 96.47 | H134: 97.1 | I134: 97.29 | J134: 96.76043194 | K134: 96.13054109 | L134: 96.66 | M134: 96.63894308 | N134: 96.8 | O134: 96
A135: Type of growth | B135: 87.57291312 | C135: 86.41167271 | D135: 86.58320266 | E135: 88.2 | F135: 84.8 | G135: 85.5 | H135: 82.6 | I135: 88.46 | J135: 87.18837488 | K135: 85.50724638 | L135: 90.41 | M135: 87.46277852 | N135: 88.5 | O135: 81.9
A136: Behaviour of growth | B136: 99.72737064 | C136: 99.76280115 | D136: 99.67510158 | E136: 100 | F136: 100 | G136: 98.46 | H136: 100 | I136: 100 | J136: 99.89144305 | K136: 99.98936962 | L136: 99.06 | M136: 100 | N136: 99.99 | O136: 100
A137: Basis of diagnosis | B137: 98.40294565 | C137: 98.68570117 | D137: 99.13766875 | E137: 99.4 | F137: 98.9 | G137: 99.8 | H137: 100 | I137: 100 | J137: 99.55815415 | K137: 95.61319585 | L137: 99.83 | M137: 99.54136291 | N137: 94.4 | O137: 98.5
A138: Table 3B Completeness of the dataset - treatment and screening information
A139: Therapeutic Surgery (% yes) | B139: 46.22894368 | C139: =(SUM(E139:O139))/11 -> 45.76365795 | D139: =(SUM(E139:L139))/8 -> 45.43492589 | E139: 56.2 | F139: 43.4 | G139: 39.44 | H139: 48.4 | I139: 49.8417 | J139: 41.32020493 | K139: 38.68750221 | L139: 46.19 | M139: 44.22083034 | N139: 45.9 | O139: 49.8
A140: Radiotherapy (% yes) | B140: 16.76063837 | C140: 17.88678517 | D140: 18.54061388 | E140: 22.7 | F140: 19.8 | G140: 19.36 | H140: 18.1 | I140: 20.609 | J140: 14.96562363 | K140: 12.09028737 | L140: 20.7 | M140: 19.52972584 | N140: 12.5 | O140: 16.4
A141: Chemotherapy (% yes) | B141: 21.39480267 | C141: 25.0394519 | D141: 25.20673079 | E141: 26.8 | F141: 23.9 | G141: 25.56 | H141: 26.2 | I141: 25.48 | J141: 22.45414897 | K141: 25.73969739 | L141: 25.52 | M141: 27.08012459 | N141: 23.5 | O141: 23.2
A142: Breast cancer - Hormone (% yes) | B142: 26.73051155 | C142: 28.84491426 | D142: 32.9832758 | E142: 52.2 | F142: 23 | G142: 52.33 | H142: 31.9 | I142: 27.18 | J142: 35.91675637 | K142: 12.64945002 | L142: 28.69 | M142: 53.38785047 | N142: 0.04 | O142: 0
A143: Prostate cancer - Hormone (% yes) | B143: 29.44073914 | C143: 29.83049528 | D143: 35.5476453 | E143: 51.7 | F143: 40.4 | G143: 47.76 | H143: 33 | I143: 35.98 | J143: 29.99720826 | K143: 9.443954104 | L143: 36.1 | M143: 43.71428571 | N143: 0.04 | O143: 0
A144: All xnmsc - any recorded treatment, ages 0-24 | C144: 89.2652826 | D144: 88.37726357 | E144: 91.6 | F144: 84.4 | G144: 96.32 | H144: 82 | I144: 91.8421 | J144: 85.95505618 | K144: 83.63095238 | L144: 91.27 | M144: 95 | N144: 92.3 | O144: 87.6
A145: All xnmsc - any recorded treatment, ages 25-64 | C145: 84.00132255 | D145: 84.83719763 | E145: 91.4 | F145: 79.8 | G145: 91.66 | H145: 83.5 | I145: 85.7528 | J145: 86.1449129 | K145: 75.10986816 | L145: 85.33 | M145: 85.71696697 | N145: 83.3 | O145: 76.3
A146: All xnmsc - any recorded treatment, ages 65+ | C146: 63.90289785 | D146: 65.69662871 | E146: 77.1 | F146: 58.6 | G146: 74.9 | H146: 63.9 | I146: 65.0892 | J146: 73.77208066 | K146: 49.38174901 | L146: 62.83 | M146: 61.45884672 | N146: 52.7 | O146: 63.2
A147: Colorectal Cancer - any recorded treatment, ages 0-64 | C147: 90.43646824 | D147: 90.40383346 | E147: 95.1 | F147: 89.9 | G147: 95.59 | H147: 89.3 | I147: 91.7375 | J147: 89.4673848 | K147: 80.37578288 | L147: 91.76 | M147: 93.47048301 | N147: 90.6 | O147: 87.5
A148: Colorectal Cancer - any recorded treatment, ages 65+ | C148: 77.34612427 | D148: 77.38254912 | E148: 85.2 | F148: 72.5 | G148: 80.86 | H148: 76.9 | I148: 78.0663 | J148: 80.52917232 | K148: 68.13492063 | L148: 76.87 | M148: 79.64697406 | N148: 73.4 | O148: 78.7
A149: Female Breast Cancer - any recorded treatment, ages 0-64 | C149: 95.6321736 | D149: 95.83969178 | E149: 98.1 | F149: 92.9 | G149: 98.59 | H149: 95.7 | I149: 96.8199 | J149: 91.9942077 | K149: 95.32342657 | L149: 97.29 | M149: 98.53637538 | N149: 96.8 | O149: 89.9
A150: Female Breast Cancer - any recorded treatment, ages 65+ | C150: 85.02299172 | D150: 86.96361412 | E150: 95 | F150: 83.9 | G150: 94.28 | H150: 91 | I150: 89.9865 | J150: 87.37946682 | K150: 70.43294615 | L150: 83.73 | M150: 92.74399591 | N150: 70.7 | O150: 76.1
A151: Prostate Cancer - any recorded treatment, ages 0-64 | C151: 67.4111667 | D151: 72.2408679 | E151: 85.8 | F151: 65.3 | G151: 92.31 | H151: 65.4 | I151: 57.7134 | J151: 91.73594132 | K151: 52.99760192 | L151: 66.67 | M151: 71.09589041 | N151: 59.7 | O151: 32.8
A152: Prostate Cancer - any recorded treatment, ages 65+ | C152: 62.11351145 | D152: 68.6040251 | E152: 90 | F152: 64.6 | G152: 92.9 | H152: 59.3 | I152: 60.4783 | J152: 82.69193202 | K152: 37.23196881 | L152: 61.63 | M152: 63.81642512 | N152: 34.1 | O152: 36.5
A154: Breast cancer - % screen detected for ages 50-67 | B154: 44.79297204 | C154: 48.940194 | D154: 47.78881654 | E154: 52.9 | F154: 45.4 | G154: 55.99 | H154: 49.6 | I154: 51.12 | J154: 24.54655381 | K154: 50.91397849 | L154: 51.84 | M154: 51.73160173 | N154: 52.8 | O154: 51.5
A155: Breast cancer - % with full screening category for ages 50-67 | B155: 67.42952554 | C155: 74.67064601 | D155: 71.88463827 | E155: 52.9 | F155: 98.6 | G155: 98.88 | H155: 74 | I155: 54.88 | J155: 24.57678356 | K155: 71.29032258 | L155: 99.95 | M155: 100 | N155: 94.8 | O155: 51.5
A156: Cervical cancer - % screen detected for ages 25-67 | B156: 16.86338624 | C156: 21.52710682 | D156: 25.54571782 | E156: 41.4 | F156: 35.7 | G156: 34.86 | H156: 31.5 | I156: 35.11 | J156: 0 | K156: 7.425742574 | L156: 18.37 | M156: 32.43243243 | N156: 0 | O156: 0
A157: Table 3C Completeness of the dataset - specific staging information including grade
A158: Stage - Breast cancer - % with known Bloom and Richardson grade | B158: >78% | C158: 89.48335443 | D158: 88.86261468 | E158: 91.3 | F158: 86.3 | G158: 90.92 | H158: 87.5 | I158: 90.49 | J158: 84.57122354 | K158: 87.03969393 | L158: 92.78 | M158: 89.48598131 | N158: 88.63 | O158: 95.3
A159: Stage - Breast cancer - % with known number of positive nodes | B159: >65% | C159: 70.86634322 | D159: 68.35531071 | E159: 75.4 | F159: 63.8 | G159: 70.94 | H159: 69.7 | I159: 73.02 | J159: 68.43678986 | K159: 48.99569584 | L159: 76.55 | M159: 80.46728972 | N159: 70.12 | O159: 82.1
A160: Stage - Breast cancer - % with known invasive size | B160: >65% | C160: 73.89042002 | D160: 72.19797239 | E160: 87.7 | F160: 63.8 | G160: 80.19 | H160: 75.5 | I160: 75.56 | J160: 68.61619424 | K160: 55.54758489 | L160: 70.67 | M160: 80.63084112 | N160: 70.28 | O160: 84.3
A161: Stage - Breast cancer - % with known NPI score | B161: >65% | C161: 68.27447983 | D161: 65.35843781 | E161: 72.8 | F161: 63.9 | G161: 67.92 | H161: 67.4 | I161: 69.59 | J161: 57.9834948 | K161: 47.82400765 | L161: 75.45 | M161: 76.3317757 | N161: 70.12 | O161: 81.7
A162: Stage - Colorectal cancer - % with known pathological Dukes stage | B162: >74% | C162: 72.11784475 | D162: 69.22205707 | E162: 87.4 | F162: 63.1 | G162: 65.1 | H162: 61.4 | I162: 86.09 | J162: 52.38798621 | K162: 62.93847039 | L162: 75.36 | M162: 80.55983564 | N162: 73.56 | O162: 85.4
A163: Stage - Cervical cancer - % with complete FIGO stage | B163: >70% | C163: 80.35578069 | D163: 76.9705446 | E163: 99.6 | F163: 36 | G163: 83.88 | H163: 81.8 | I163: 86.76 | J163: 63.10483871 | K163: 69.87951807 | L163: 94.74 | M163: 80.76923077 | N163: 94.18 | O163: 93.2
A164: Stage - Melanoma of the skin cancer - % with known Breslow thickness | B164: >80% | C164: 84.80826409 | D164: 83.4120436 | E164: 87 | F164: 77.6 | G164: 88.88 | H164: 85.5 | I164: 88.09 | J164: 66.43617021 | K164: 77.79017857 | L164: 96 | M164: 94.67455621 | N164: 76.32 | O164: 94.6
A165: Stage - Melanoma of the skin cancer - % with known Clark level | B165: >80% | C165: =(SUM(E165:O165))/11 -> 67.90380083 | D165: =(SUM(E165:L165))/8 -> 63.24640957 | E165: 78.8 | F165: 72.5 | G165: 89.85 | H165: 83 | I165: 81.72 | J165: 7.021276596 | K165: 0 | L165: 93.08 | M165: 86.39053254 | N165: 62.38 | O165: 92.2
A166: Stage - All malignancies excluding NMSC - % with known stage | B166: >70% | C166: =(SUM(E166:O166))/11 -> 35.30958456 | D166: =(SUM(E166:L166))/8 -> 33.33520375 | E166: 72.8 | F166: 24.1 | G166: 32.46 | H166: 27.2 | I166: 28.77 | J166: 18.97152652 | K166: 31.48010347 | L166: 30.9 | M166: 30.41380018 | N166: 31.21 | O166: 60.1

Sheet Table 4
A1: Table 4 Coding changes from 01/07/2010 to 31/03/2011 that have been implemented at UK cancer registries (Yes/No)
A3: Table No. & Parameters | B3: ECRIC | C3: NWCIS | D3: NYCRIS | E3: OCIU | F3: SWCIS | G3: Thames | H3: Trent | I3: WMCIU | J3: Scotland | K3: WCISU | L3: NICR
A4: Pr/11/01 Pituicytoma | B4: Yes | C4: Yes | D4: Yes | E4: Yes | F4: Yes | G4: Yes | H4: Yes | I4: Yes | J4: Yes | K4: No | L4: Yes
A5: Pr/11/02 In-Situ Follicular Lymphoma | B5: Yes | C5: Yes | D5: Yes | E5: Yes | F5: Yes | G5: Yes | H5: Yes | I5: Yes | J5: Yes | K5: No | L5: Yes
A7: Coding changes highlighted in grey have been agreed this year but have an implementation date of 01/01/2010 and so can still be commented on whether a cancer registry has implemented the change
A8: The above coding changes relate to when the change was agreed in the period 01/07/2010 to 31/03/2011

Sheet Table 5
A1: TABLE 5: | C1: Trends in timeliness (as reported by registries)
A2: Proportion (%) of registrations completed (ONS Ready) within 18 months of year end (Target: 100%*)
A4: Registry | C4: 1997 | D4: 1998 | E4: 1999 | F4: 2000 | G4: 2001 | H4: 2002 | I4: 2003 | J4: 2004 | K4: 2005 | L4: 2006 | M4: 2007 | N4: 2008 | O4: 2009
C5: by 06/99 | D5: by 06/00 | E5: by 06/01 | F5: by 06/02 | G5: by 06/03 | H5: by 06/04 | I5: by 06/05 | J5: by 06/06 | K5: by 06/07 | L5: by 06/08 | M5: by 06/09 | N5: by 06/10 | O5: by 03/11
A6: England (average) | F6: 98 | G6: 96 | H6: 96.76464118 | I6: 99.11665632 | J6: 101.1848935 | K6: 101.020326 | L6: 100.2579687 | M6: 99.78616369 | N6: 101.7433304 | O6: 103.3654251
A7: Scotland | C7: 73.50304431 | D7: 44.30475433 | E7: 30.04756668 | F7: 25.07479789 | G7: 30.18904621 | H7: 44.69773349 | I7: 71.60161681 | J7: 59.7356458 | K7: 54.3955635 | L7: 48.23379798 | M7: 66.62639133 | N7: 95.42602298 | O7: 93.24693839
A8: Wales | C8: 103.1165265 | D8: 98.66914971 | E8: 103.6603221 | F8: 103.9161124 | G8: 101.1446691 | H8: 98.99601455 | I8: 104.6031335 | J8: 105.9888901 | K8: 101.8505644 | L8: 103.1327139 | M8: 103.4199807 | N8: 103.6247086 | O8: 101.6242884
A9: Northern Ireland | F9: 0 | G9: 0 | H9: 102.552994 | I9: 103.7741592 | J9: 104.6294927 | K9: 99.98077755 | L9: 103.2837787 | M9: 107.0548609 | N9: 106.3373144 | O9: 104.1134692
A10: UK average1 | C10: 80.19815296 | D10: 86.546234 | E10: 74.75341836 | F10: 90.56210103 | G10: 90 | H10: 92.19649564 | I10: 96.9623943 | J10: 97.67112622 | K10: 96.66247879 | L10: 95.66149769 | M10: 97.12358225 | N10: 101.386635 | O10: 102.3579046
A12: * | B12: The target for completeness was originally 90%. This changed to 100% for the 2000 diagnosis data, reported in 2002.
A13: 1 | B13: GB average prior to 2002 published report
A14: Note: 1998 report published data were not included here because the definition of "ONS Ready" changed from 1999 onwards

Sheet Table 6
A1: TABLE 6: | C1: Trends in timeliness (as reported by ONS)
A2: Proportion (%) of registrations received by ONS within 18 months of year end (Target: 100%*)
A3: (as percentage of the previous 3 complete years held by ONS**)
A5: Registry | C5: 1999 | D5: 2000 | E5: 2001 | F5: 2002 | G5: 2003 | H5: 2004 | I5: 2005 | J5: 2006 | K5: 2007 | L5: 2008 | M5: 2009
C6: by 06/01 | D6: by 06/02 | E6: by 06/03 | F6: by 06/04 | G6: by 06/05 | H6: by 06/06 | I6: by 06/07 | J6: by 06/08 | K6: by 06/09 | L6: by 06/10 | M6: by 03/11
A7: England (average) | C7: 68.07785867 | D7: 64.19058456 | E7: 85.74858443 | F7: 95.7207699 | G7: 99.75093007 | H7: 101.3419628 | I7: 101.3419628 | J7: 101.1354375 | K7: 99.41474199 | L7: 102.3778395 | M7: 103.4835479
B8: Eastern | C8: 120.8423944 | D8: 87.39685573 | E8: 84.8669137 | F8: 94.35276468 | G8: 102.0042181 | H8: 101.9874454 | I8: 105 | J8: 101.1689803 | K8: 102.8 | L8: 105.837031 | M8: 103.2693716
B9: North West | C9: 59.98075791 | D9: 0 | E9: 39.72491258 | F9: 97.1072818 | G9: 100.2188708 | H9: 103.9566907 | I9: 105 | J9: 105.0121877 | K9: 98.45510489 | L9: 104.7497206 | M9: 110.4670907
B10: Northern & Yorkshire | C10: 76.82583281 | D10: 73.24855491 | E10: 69.4729334 | F10: 98.08778114 | G10: 99.42073226 | H10: 98.59926105 | I10: 93 | J10: 95.77791479 | K10: 95.46333551 | L10: 98.5067869 | M10: 101.4287688
B11: Oxford | C11: 110.0673134 | D11: 100.7007708 | E11: 100.3233339 | F11: 95.89455488 | G11: 99.76343513 | H11: 105.5568218 | I11: 98 | J11: 99.96209865 | K11: 98.52089882 | L11: 109.5390845 | M11: 102.7924357
B12: South & West | C12: 1.269749657 | D12: 0 | E12: 78.70584375 | F12: 95.87951493 | G12: 101.4005661 | H12: 102.2959948 | I12: 101 | J12: 102.6259493 | K12: 97.55068421 | L12: 98.54770549 | M12: 98.75427048
B13: Thames | C13: 0 | D13: 94.43227881 | E13: 92.6654232 | F13: 91.73447908 | G13: 97.01101184 | H13: 97.11968303 | I13: 98 | J13: 99.62008684 | K13: 100.3 | L13: 101.1323156 | M13: 104.0344451
B14: Trent | C14: 105.8115706 | D14: 103.0566382 | E14: 102.413006 | F14: 95.38000983 | G14: 99.80989695 | H14: 108.0967069 | I14: 108.0967069 | J14: 104.0294539 | K14: 103.4062862 | L14: 105.9322253 | M14: 106.623015
B15: West Midlands | C15: 99.13604947 | D15: 85.01722891 | E15: 98.07531614 | F15: 101.0069853 | G15: 102.4855733 | H15: 101.5148282 | I15: 100 | J15: 100.8868282 | K15: 100.3044486 | L15: 101.9275833 | M15: 100.7132527
A17: * | B17: The target for completeness was originally 90%. This changed to 100% for the 2000 diagnosis data, reported in 2002.
A18: ** | B18: The % complete data were supplied via the management reports supplied quarterly by ONS, without any intervention
A19: ** Note: The % used in this table DIFFERS from the one used in table 1.

Sheet Table 7
A1: TABLE 7: | C1: Trends in % Death Certificate Only
A3: % DCO: males (target: 2%)
A4: Registry | C4: Year report published 1
C5: 1998 | D5: 1999 | E5: 2000 | F5: 2001 | G5: 2002 | H5: 2003 | I5: 2004 | J5: 2005 | K5: 2006 | L5: 2007 | M5: 2008 | N5: 2009 | O5: 2010 | P5: 2011
A6: England (average) | G6: 4.5 | H6: 5.1 | I6: 4.755555556 | J6: 4.193548495 | K6: 3.62130609 | L6: 4.107373987 | M6: 3.6375 | N6: =(SUM(N7:N14))/8 -> 2.753353205 | O6: =(SUM(O7:O14))/8 -> 1.8462776 | P6: =(SUM(P7:P14))/8 -> 1.4941688
B7: Eastern 2 | C7: 0.07 | D7: 0.3 | E7: 0.2 | F7: 0.4 | G7: 0.3 | H7: 0.19 | I7: 0.5 | J7: 0.23 | K7: 0.07 | L7: 4.8 | M7: 1.3 | N7: 0.007 | O7: 0.007 | P7: 0.04
B8: North West 3 | C8: 3.233001283 | D8: 1.015318893 | E8: 2.412524512 | F8: 3.329832065 | G8: 3.863253007 | H8: 6.216340563 | I8: 5.882929684 | J8: 4.826905372 | K8: 4.716464177 | L8: 5.156007 | M8: 4.8 | N8: 6.6 | O8: 6.374209 | P8: 3.262583
B9: Northern & Yorkshire4 | C9: 2.684120057 | D9: 5.25 | E9: 0.9 | F9: 1.4 | G9: 1.6 | H9: 1.4 | I9: 1.9 | J9: 1.6 | K9: 1.5 | L9: 2.1 | M9: 1.7 | N9: 1.93 | O9: 1.03 | P9: 0.94
B10: Oxford | C10: 6.7 | D10: 1.4 | E10: 2.1 | F10: 1.1 | G10: 0.7 | H10: 1.6 | I10: 1.3 | J10: 1.2 | K10: 3.3 | L10: 2 | M10: 2.6 | N10: 1 | O10: 0.8 | P10: 2
B11: South & West | C11: 6.082402675 | D11: 8 | E11: 9.154057772 | F11: 8.014877917 | G11: 10.6 | H11: 8.2 | I11: 7.6 | J11: 3.9 | K11: 3.3 | L11: 1.87 | M11: 1.3 | N11: 1.4156 | O11: 1.6975 | P11: 1.4
B12: Thames 2 | C12: 21.01701396 | D12: 15.42236115 | E12: 16 | F12: 11.8 | G12: 7.1 | H12: 6.861841378 | I12: 4.8 | J12: 4.368755014 | K12: 4.677211566 | L12: 4.342486183 | M12: 3 | N12: 2.094499876 | O12: 1.778171139 | P12: 1.704480891
B13: Trent 5 | D13: 9.03 | E13: 7.6 | F13: 7.686387686 | G13: 9.14770608 | H13: 9.3 | I13: 6.7 | J13: 5.994377437 | K13: 3.423003248 | L13: 2.589721045 | M13: 2.3 | N13: 2.074910367 | O13: 1.633340658 | P13: 1.926286509
B14: West Midlands | C14: 10 | D14: 6.7 | E14: 6.2 | F14: 12.1 | G14: 5.5 | H14: 5.5 | I14: 9.2 | J14: 9.4 | K14: 6.3 | L14: 10.00077767 | M14: 12.1 | N14: 6.904815397 | O14: 1.45 | P14: 0.68
A15: Scotland | C15: 2.4 | D15: 2.3 | E15: 0.93 | F15: 0.5219985086 | G15: 0.5244755245 | H15: 0.52 | I15: 0.5 | J15: 0.8577949162 | K15: 0.6700299543 | L15: 0.6570004531 | M15: 0.5 | N15: 0.5487896557 | O15: 0.5807115554 | P15: 0.3686113277
A16: Wales6 | D16: 10.2 | E16: 4.6 | F16: 3.15 | G16: 3.91 | H16: 6.865747831 | I16: 6.8 | J16: 5.220835334 | K16: 3.143507973 | L16: 3.2 | M16: 2.6 | N16: 2.1 | O16: 2.24220104 | P16: 2.425494888
A17: Northern Ireland7 | G17: 1.5 | H17: 1.442150115 | I17: 1.56 | J17: 1.4 | K17: 1.4 | L17: 1.2 | M17: 0.9 | N17: 0.66 | O17: 0.38 | P17: 0.21
A18: UK8 Average | C18: 6.674332431 | D18: 5.482696763 | E18: 4.450338148 | F18: 4.759705836 | G18: 4.0001643 | H18: 4.53820511 | I18: 4.305 | J18: 3.768380558 | K18: 3.150441062 | L18: 3.446908395 | M18: 3.009090909 | N18: =(SUM(N7:N17))/11 -> 2.303237754 | O18: =(SUM(O7:O17))/11 -> 1.633921217 | P18: =(SUM(P7:P17))/11 -> 1.359768783
A20: % DCO: females (target: 2%)
A21: Registry | C21: Year report published 1
C22: 1998 | D22: 1999 | E22: 2000 | F22: 2001 | G22: 2002 | H22: 2003 | I22: 2004 | J22: 2005 | K22: 2006 | L22: 2007 | M22: 2008 | N22: 2009 | O22: 2010 | P22: 2011
A23: England (average) | G23: 4.9 | H23: 5.2 | I23: 4.877777778 | J23: 4.339177974 | K23: 3.802617923 | L23: 3.891515296 | M23: 3.6125 | N23: =(SUM(N24:N31))/8 -> 2.78279734 | O23: =(SUM(O24:O31))/8 -> 2.015695297 | P23: =(SUM(P24:P31))/8 -> 1.677458235
B24: Eastern 2 | C24: 0.25 | D24: 0.2 | E24: 0.2 | F24: 0.5 | G24: 0.4 | H24: 0.38 | I24: 0.4 | J24: 0.093 | K24: 0.12 | L24: 5 | M24: 1 | N24: 0.04 | O24: 0 | P24: 0.007
B25: North West 3 | C25: 3.725895044 | D25: 1.288660721 | E25: 2.711347919 | F25: 3.229575643 | G25: 4.144189409 | H25: 6.132283064 | I25: 5.336588537 | J25: 4.690376474 | K25: 4.482346578 | L25: 4.968281 | M25: 4.8 | N25: 6.2 | O25: 6.269521 | P25: 3.343613
B26: Northern & Yorkshire4 | C26: 2.703490696 | D26: 5.1 | E26: 1.25 | F26: 1.6 | G26: 2 | H26: 1.7 | I26: 1.8 | J26: 1.5 | K26: 1.3 | L26: 1.68 | M26: 1.6 | N26: 1.92 | O26: 1.06 | P26: 0.99
B27: Oxford | C27: 7.2 | D27: 1.6 | E27: 2.3 | F27: 1 | G27: 1.3 | H27: 1.9 | I27: 1.5 | J27: 1.8 | K27: 3.9 | L27: 1.6 | M27: 2.6 | N27: 1.2 | O27: 0.8 | P27: 2.5
B28: South & West | C28: 6.981410446 | D28: 9 | E28: 9.477645258 | F28: 8.59061173 | G28: 10.9 | H28: 8.5 | I28: 8.7 | J28: 5.5 | K28: 3.6 | L28: 2.22 | M28: 1.6 | N28: 1.8321 | O28: 2.2384 | P28: 1.9
B29: Thames 2 | C29: 19.23597644 | D29: 15.71755543 | E29: 16.1 | F29: 11.8 | G29: 7.8 | H29: 7.578003543 | I29: 4.9 | J29: 4.478715538 | K29: 4.831656416 | L29: 3.904443874 | M29: 3 | N29: 2.585542071 | O29: 2.061978546 | P29: 2.041676243
B30: Trent 5 | D30: 8.52 | E30: 7.2 | F30: 6.831888428 | G30: 8.348540146 | H30: 9 | I30: 7.2 | J30: 5.567986231 | K30: 3.70705989 | L30: 2.149570903 | M30: 2.2 | N30: 1.968871595 | O30: 1.815662826 | P30: 1.907376635
B31: West Midlands | C31: 11 | D31: 7.6 | E31: 6.8 | F31: 11.6 | G31: 5.9 | H31: 5 | I31: 9.8 | J31: 9.4 | K31: 6.9 | L31: 9.60982659 | M31: 12.1 | N31: 6.515865051 | O31: 1.88 | P31: 0.73
A32: Scotland | C32: 2.8 | D32: 2.7 | E32: 0.97 | F32: 0.3161141095 | G32: 0.3291688487 | H32: 0.7 | I32: 0.4 | J32: 0.7981326707 | K32: 0.7233947349 | L32: 0.7492507493 | M32: 0.8 | N32: 0.7662560871 | O32: 0.646478394 | P32: 0.4566512244
A33: Wales6 | D33: 8 | E33: 5.3 | F33: 3.65 | G33: 4.35 | H33: 7.582357746 | I33: 6.3 | J33: 6.006389776 | K33: 4.11196433 | L33: 4.1 | M33: 2.9 | N33: 2.5 | O33: 2.666666667 | P33: 2.968352968
A34: Northern Ireland7 | G34: 2.5 | H34: 1.620029455 | I34: 1.29 | J34: 1.7 | K34: 2 | L34: 1.8 | M34: 1.3 | N34: 0.48 | O34: 0.37 | P34: 0.15
A35: UK8 Average | C35: 6.883124388 | D35: 5.506462952 | E35: 4.708970438 | F35: 4.730511273 | G35: 4.29129575 | H35: 4.698479979 | I35: 4.324166667 | J35: 3.963093685 | K35: 3.421576697 | L35: 3.434670283 | M35: 3.081818182 | N35: =(SUM(N24:N34))/11 -> 2.364421346 | O35: =(SUM(O24:O34))/11 -> 1.800791585 | P35: =(SUM(P24:P34))/11 -> 1.544970006
A37: 1 | B37: Most, but not all, registries' analysis is of the diagnosis year two years prior to report publish year
A38: 2 | B38: Reports from 2007 reflect the boundary change between Eastern and Thames where Eastern includes Hertfordshire and Essex from 2007 onwards
A39: 3 | B39: For all reports, the figures for NWCIS were produced by multiplying the office area-specific estimates for the old MCCR (NWCIS: Liverpool) and NWCR (NWCIS: Manchester) registries by the proportions of ONS Ready cases reported for each area for each year
A40: 4 | B40: For 1998, 1999 and 2000 reports the separate estimates for Northern and Yorkshire registries have been averaged
A41: 5 | B41: In 1998 Trent submitted data for 1997 registrations, which was too soon after the calendar year was completed so the figures are not shown
A42: 6 | B42: Wales did not submit any data until the report published in 1999
A43: 7 | B43: Northern Ireland did not submit any data until the report published in 2002
A44: 8 | B44: GB average prior to 2002; England & Scotland average in 1998 report

Sheet Table 8
A1: TABLE 8: | C1: Trends in % Microscopically verified
A3: % Microscopically verified: males
A4: Registry | C4: Year report published 1
C5: 1998 | D5: 1999 | E5: 2000 | F5: 2001 | G5: 2002 | H5: 2003 | I5: 2004 | J5: 2005 | K5: 2006 | L5: 2007 | M5: 2008 | N5: 2009 | O5: 2010 | P5: 2011
A6: England (average) | G6: 79.4 | H6: 81.1 | I6: 80.95638767 | J6: 81.74410818 | K6: 82.69652453 | L6: 83.0803047 | M6: 84.325 | N6: 84.92593161 | O6: 83.40460693 | P6: 82.83206934
B7: Eastern 2 | C7: 81.5 | D7: 82 | E7: 89.9 | F7: 82.2 | G7: 85.5 | H7: 85.7 | I7: 86.3 | J7: 86.9 | K7: 86.6 | L7: 82.5 | M7: 84.8 | N7: 85.3 | O7: 84.8 | P7: 85.2
B8: North West 3 | C8: 77.98578336 | D8: 78.08066026 | E8: 76.91997627 | F8: 79.96418225 | G8: 78.5220462 | H8: 80.8459865 | I8: 77.42729117 | J8: 76.44384931 | K8: 77.53117 | L8: 76.40002 | M8: 77.7 | N8: 79.6 | O8: 75.24842 | P8: 77.12514
B9: Northern & Yorkshire4 | C9: =(70.01332741004+78.05)/2 -> 74.03166371 | D9: 75.6 | E9: =(79.1+82.2)/2 -> 80.65 | F9: 82.8 | G9: 84.3 | H9: 85.1 | I9: 84.8 | J9: 85.1 | K9: 85.3 | L9: 86.21 | M9: 86.9 | N9: 86.13 | O9: 83.91 | P9: 83.42
B10: Oxford | C10: 82 | D10: 84.6 | E10: 86.1 | F10: 86 | G10: 88.5 | H10: 87.7 | I10: 87.5 | J10: 87.8 | K10: 86.3 | L10: 87.5 | M10: 86.8 | N10: 90.1 | O10: 85.8 | P10: 81.5
B11: South & West | C11: 76.04786504 | D11: 77 | E11: 85.81536388 | F11: 81.19340032 | G11: 63.4 | H11: 72.2 | I11: 77.2 | J11: 82.5 | K11: 85.4 | L11: 84.31 | M11: 82.4 | N11: 84.663 | O11: 84.3 | P11: 84.9
B12: Thames 2 | C12: 66.6 | D12: 69.1552777 | E12: 70.1 | F12: 73.3 | G12: 76 | H12: 77.9580399 | I12: 77.97315885 | J12: 79.91393771 | K12: 79.98139135 | L12: 81.78348978 | M12: 84.6 | N12: 85.22305599 | O12: 86.2976224 | P12: 82.54611568
B13: Trent5,6 | E13: 70.4 | F13: 74.20875421 | G13: 75.80645161 | H13: 76.8 | I13: 77.7184102 | J13: 78.33499592 | K13: 81.48579995 | L13: 83.07089761 | M13: 83.6 | N13: 84.14066672 | O13: 81.30081301 | P13: 81.01529903
B14: West Midlands | C14: 75 | D14: 76.9 | E14: 79.4 | F14: 78.9 | G14: 84.5 | H14: 84 | I14: 83.4 | J14: 82.3 | K14: 84.09690946 | L14: 82.86803017 | M14: 87.8 | N14: 84.25073017 | O14: 85.58 | P14: 86.95
A15: Scotland | C15: 81.3 | D15: 80.7 | E15: 84.6 | F15: 84.25718784 | G15: 84.21805467 | H15: 83.9 | I15: 85.41857178 | J15: 84.62449656 | K15: 84.27400284 | L15: 84.89654131 | M15: 86 | N15: 84.73913697 | O15: 84.94560423 | P15: 84.28439782
A16: Wales7 | D16: 43 | E16: 43 | F16: 44.11 | G16: 68.16 | H16: 67.89178152 | I16: 66.18205632 | J16: 72.02352376 | K16: 70.91116173 | L16: 77.2 | M16: 77 | N16: 80.1 | O16: 83.57885615 | P16: 82.30367631
A17: Northern Ireland8 | G17: 76.1 | H17: 75.35234349 | I17: 78.9 | J17: 82 | K17: 77.6 | L17: 83.5 | M17: 81.1 | N17: 84.4 | O17: 83.6 | P17: 86.9
A18: UK9 Average | C18: 77.07078651 | D18: 78.03684343 | E18: 76.90961366 | F18: 80.20020139 | G18: 78.78608966 | H18: 79.77605041 | I18: 79.92567643 | J18: 81.19541616 | K18: 81.42115711 | L18: 82.74899808 | M18: 83.51818182 | N18: 84.42241726 | O18: 83.57830144 | P18: 83.28587535
A20: % Microscopically verified: females
A21: Registry | C21: Year report published 1
C22: 1998 | D22: 1999 | E22: 2000 | F22: 2001 | G22: 2002 | H22: 2003 | I22: 2004 | J22: 2005 | K22: 2006 | L22: 2007 | M22: 2008 | N22: 2009 | O22: 2010 | P22: 2011
A23: England (average) | G23: 80.3 | H23: 81.4 | I23: 81.68160784 | J23: 82.73304521 | K23: 83.62328358 | L23: 84.91966098 | M23: 85.775 | N23: 86.38010518 | O23: 85.34463497 | P23: 84.9795245
B24: Eastern 2 | C24: 83.6 | D24: 84.1 | E24: 85.2 | F24: 85 | G24: 86.8 | H24: 85.4 | I24: 87.8 | J24: 88.2 | K24: 87.9 | L24: 83.5 | M24: 86.5 | N24: 86.2 | O24: 87.2 | P24: 87.3
B25: North West 3 | C25: 78.06497104 | D25: 78.31159783 | E25: 77.48201054 | F25: 80.14325556 | G25: 79.13734722 | H25: 80.92812522 | I25: 77.98073869 | J25: 76.39674325 | K25: 77.82587 | L25: 77.66052 | M25: 77.9 | N25: 80 | O25: 76.5 | P25: 78.40719
B26: Northern & Yorkshire4 | C26: =(69.394565390116+80.18)/2 -> 74.7872827 | D26: 76.4 | E26: =(79.5+82.7)/2 -> 81.1 | F26: 83.2 | G26: 84.5 | H26: 84.8 | I26: 84.4 | J26: 85.1 | K26: 85.7 | L26: 89.85 | M26: 89.9 | N26: 90.17 | O26: 89.06 | P26: 89.41
B27: Oxford | C27: 83 | D27: 84.9 | E27: 86.8 | F27: 87.6 | G27: 87.8 | H27: 87.3 | I27: 87.5 | J27: 89 | K27: 86.7 | L27: 88.6 | M27: 88.2 | N27: 89.7 | O27: 86.2 | P27: 82.7
B28: South & West | C28: 76.38118844 | D28: 77 | E28: 84.87786211 | F28: 81.0675563 | G28: 65.9 | H28: 72.8 | I28: 78.2 | J28: 84.5 | K28: 87.4 | L28: 86.16 | M28: 84.6 | N28: 86.194 | O28: 86.1 | P28: 85.5
B29: Thames 2 | C29: 69.2 | D29: 70.44716975 | E29: 71.3 | F29: 74.8 | G29: 76.2 | H29: 78.28916447 | I29: 79.53493498 | J29: 79.77888103 | K29: 81.45198564 | L29: 84.21525816 | M29: 85.3 | N29: 86.54056906 | O29: 87.26261422 | P29: 84.71615721
B30: Trent5,6 | E30: 74 | F30: 77.30870712 | G30: 78.47824104 | H30: 78.7 | I30: 78.94885561 | J30: 81.17039587 | K30: 83.89488426 | L30: 84.5770331 | M30: 85.9 | N30: 86.17898833 | O30: 84.34446551 | P30: 83.77284878
B31: West Midlands | C31: 76 | D31: 78.8 | E31: 80.3 | F31: 81.1 | G31: 85.5 | H31: 84.4 | I31: 83.5 | J31: 83.6 | K31: 84.35528232 | L31: 84.79447656 | M31: 87.9 | N31: 86.05728403 | O31: 86.09 | P31: 88.03
A32: Scotland | C32: 82.4 | D32: 81.8 | E32: 85.9 | F32: 85.55898227 | G32: 85.29961846 | H32: 84.8 | I32: 86.44238987 | J32: 86.238878 | K32: 85.76329331 | L32: 85.8427287 | M32: 86.8 | N32: 86.26468061 | O32: 85.9816264 | P32: 85.94308405
A33: Wales7 | D33: 43 | E33: 43 | F33: 58.61 | G33: 61.12 | H33: 64.83800708 | I33: 61.71854217 | J33: 66.41533546 | K33: 70.54743622 | L33: 77.8 | M33: 79.1 | N33: 80.7 | O33: 84.64327485 | P33: 84.31508432
A34: Northern Ireland8 | G34: 81.9 | H34: 80.94256259 | I34: 82.9 | J34: 85 | K34: 82.6 | L34: 85.1 | M34: 82.7 | N34: 87.2 | O34: 87.5 | P34: 88.7
A35: UK9 Average | C35: 77.95884347 | D35: 78.84883361 | E35: 77.25815518 | F35: 81.46868451 | G35: 79.28642412 | H35: 80.24978201 | I35: 80.51628355 | J35: 81.8543017 | K35: 82.62669014 | L35: 84.37272877 | M35: 84.98181818 | N35: 85.92777473 | O35: 85.53472554 | P35: 85.34494221
A37: 1 | B37: Most, but not all, registries' analysis is of the diagnosis year two years prior to report publish year
A38: 2 | B38: Reports from 2007 reflect the boundary change between Eastern and Thames where Eastern includes Hertfordshire and Essex from 2007 onwards
A39: 3 | B39: For all reports, the figures for NWCIS were produced by multiplying the office area-specific estimates for the old MCCR (NWCIS: Liverpool) and NWCR (NWCIS: Manchester) registries by the proportions of ONS Ready cases reported for each area for each year
A40: 4 | B40: For 1998, 1999 and 2000 reports the separate estimates for Northern and Yorkshire registries have been averaged
A41: 5 | B41: In 1998 Trent submitted data for 1997 registrations, which was too soon after the calendar year was completed so the figures are not shown
A42: 6 | B42: Prior to the report published in 2000, Trent excluded DCOs from these calculations, artificially inflating the %MV reported - to avoid confusion, the figures for 1998 and 1999 have not been shown
A43: 7 | B43: Wales did not submit any data until the report published in 1999
A44: 8 | B44: Northern Ireland did not submit any data until the report published in 2002
A45: 9 | B45: GB average prior to 2002; England & Scotland average in 1998 report

Sheet Table 9
A1: TABLE 9: | C1: Trends in Mortality : Incidence ratios
A3: Mortality : Incidence ratio - males
A4: Registry | C4: Year report published 1
C5: 1998 | D5: 1999 | E5: 2000 | F5: 2001 | G5: 2002 | H5: 2003 | I5: 2004 | J5: 2005 | K5: 2006 | L5: 2007 | M5: 2008 | N5: 2009 | O5: 2010 | P5: 2011
A6: England (average)2 | G6: 0.59 | H6: 0.58 | I6: 0.5901572468 | J6: 0.5650457865 | K6: 0.5434444918 | L6: 0.5385278087 | M6: 0.53625 | N6: =(SUM(N7:N14))/8 -> 0.5284782557 | O6: =(SUM(O7:O14))/8 -> 0.5109728489 | P6: =(SUM(P7:P14))/8 -> 0.4933288115
B7: Eastern 3,4 | C7: 0.68 | D7: 0.638 | E7: 0.659 | F7: 0.635 | G7: 0.6 | H7: 0.64 | I7: 0.6 | J7: 0.5 | K7: 0.54 | L7: 0.54 | M7: 0.54 | N7: 0.53 | O7: 0.51 | P7: 0.49
B8: North West 5 | C8: 0.65781728 | D8: 0.6409627522 | E8: 0.6568121323 | F8: 0.6196188231 | G8: 0.6095111023 | H8: 0.5907147737 | I8: 0.6094039552 | J8: 0.566101738 | K8: 0.5328962135 | L8: 0.524194 | M8: 0.57 | N8: 0.58 | O8: 0.5372064 | P8: 0.5
B9: Northern & Yorkshire6 | C9: 0.71003591 | D9: 0.713 | E9: 0.681 | F9: 0.643 | G9: 0.627 | H9: 0.581 | I9: 0.6 | J9: 0.58 | K9: 0.57 | L9: 0.57 | M9: 0.56 | N9: 0.55 | O9: 0.53 | P9: 0.5
B10: Oxford | C10: 0.61 | D10: 0.58 | E10: 0.536 | F10: 0.552 | G10: 0.526 | H10: 0.536 | I10: 0.54 | J10: 0.53 | K10: 0.5 | L10: 0.51 | M10: 0.5 | N10: 0.47 | O10: 0.46 | P10: 0.45
B11: South & West | C11: 0.6002902391 | D11: 0.6 | E11: 0.6301886792 | F11: 0.58 | G11: 0.569 | H11: 0.53 | I11: 0.53 | J11: 0.53 | K11: 0.5 | L11: 0.51 | M11: 0.5 | N11: 0.4916 | O11: 0.5 | P11: 0.5
B12: Thames4 | C12: 0.6644236284 | D12: 0.6382305903 | E12: 0.631 | F12: 0.629 | G12: 0.6 | H12: n/a | I12: 0.6152273319 | J12: 0.6033841441 | K12: 0.5948325222 | L12: 0.561189578 | M12: 0.55 | N12: 0.5275830791 | O12: 0.5062960132 | P12: 0.4849058748
B13: Trent7 | D13: 0.69 | E13: 0.68 | F13: 0.6378066378 | G13: 0.6172851016 | H13: 0.611 | I13: 0.6304836895 | J13: 0.633082434 | K13: 0.5653368868 | L13: 0.5395252178 | M13: 0.53 | N13: 0.529178427 | O13: 0.5242803779 | P13: 0.4917246175
B14: West Midlands | C14: 0.6 | D14: 0.6 | E14: 0.615 | F14: 0.5629 | G14: 0.56 | H14: 0.59 | I14: 0.57 | J14: 0.569 | K14: 0.5448897173 | L14: 0.5533136738 | M14: 0.54 | N14: 0.5494645398 | O14: 0.52 | P14: 0.53
A15: Scotland | C15: 0.637 | D15: 0.597 | E15: 0.621 | F15: 0.614301102 | G15: 0.5896376351 | H15: 0.615 | I15: 0.643278743 | J15: 0.6109926558 | K15: 0.5992432603 | L15: 0.576952122 | M15: 0.6 | N15: 0.5817922117 | O15: 0.5653484269 | P15: 0.5454029914
A16: Wales8 | D16: 0.621 | E16: 0.598 | F16: 0.6003 | G16: 0.5403 | H16: 0.5579377233 | I16: 0.5569089718 | J16: 0.5258041287 | K16: 0.5003416856 | L16: 0.5 | M16: 0.48 | N16: 0.49 | O16: 0.4842937608 | P16: 0.4828148793
A17: Northern Ireland9 | G17: 0.61 | H17: 0.5729269092 | I17: 0.57 | J17: 0.58 | K17: 0.54 | L17: 0.56 | M17: 0.52 | N17: 0.52 | O17: 0.5 | P17: 0.49
A18: UK10 Average | C18: 0.6592889466 | D18: 0.6407858825 | E18: 0.6371573899 | F18: 0.6076295274 | G18: 0.5868310306 | H18: 0.5831849211 | I18: 0.590133578 | J18: 0.5668507385 | K18: 0.5442154477 | L18: 0.5404704174 | M18: 0.5354545455 | N18: =(SUM(N7:N17))/11 -> 0.5290562052 | O18: =(SUM(O7:O17))/11 -> 0.5124931799 | P18: =(SUM(P7:P17))/11 -> 0.4968043966
A20: Mortality : Incidence ratio - females
A21: Registry | C21: Year report published 1
C22: 1998 | D22: 1999 | E22: 2000 | F22: 2001 | G22: 2002 | H22: 2003 | I22: 2004 | J22: 2005 | K22: 2006 | L22: 2007 | M22: 2008 | N22: 2009 | O22: 2010 | P22: 2011
A23: England (average)2 | G23: 0.54 | H23: 0.54 | I23: 0.5506110211 | J23: 0.5118122946 | K23: 0.5081539713 | L23: 0.5057964766 | M23: 0.49625 | N23: =(SUM(N24:N31))/8 -> 0.4955277794 | O23: =(SUM(O24:O31))/8 -> 0.4751496367 | P23: =(SUM(P24:P31))/8 -> 0.4595253781
B24: Eastern 3,4 | C24: 0.59 | D24: 0.578 | E24: 0.577 | F24: 0.558 | G24: 0.55 | H24: 0.57 | I24: 0.52 | J24: 0.45 | K24: 0.49 | L24: 0.54 | M24: 0.5 | N24: 0.49 | O24: 0.48 | P24: 0.47
B25: North West 5 | C25: 0.61654816 | D25: 0.6025857755 | E25: 0.5930587006 | F25: 0.5874615753 | G25: 0.5589930029 | H25: 0.5596507008 | I25: 0.5692257483 | J25: 0.5221368514 | K25: 0.519949858 | L25: 0.5067884 | M25: 0.54 | N25: 0.55 | O25: 0.50389 | P25: 0.47
B26: Northern & Yorkshire6 | C26: 0.6590360718 | D26: 0.647 | E26: 0.609 | F26: 0.579 | G26: 0.557 | H26: 0.549 | I26: 0.57 | J26: 0.53 | K26: 0.53 | L26: 0.53 | M26: 0.53 | N26: 0.53 | O26: 0.49 | P26: 0.48
B27: Oxford | C27: 0.53 | D27: 0.52 | E27: 0.547 | F27: 0.488 | G27: 0.506 | H27: 0.497 | I27: 0.5 | J27: 0.49 | K27: 0.46 | L27: 0.49 | M27: 0.46 | N27: 0.48 | O27: 0.43 | P27: 0.41
B28: South & West | C28: 0.5479761531 | D28: 0.54 | E28: 0.5261177371 | F28: 0.51 | G28: 0.488 | H28: 0.47 | I28: 0.51 | J28: 0.49 | K28: 0.48 | L28: 0.46 | M28: 0.46 | N28: 0.4525 | O28: 0.47 | P28: 0.46
B29: Thames4 | C29: 0.5990705844 | D29: 0.5788269053 | E29: 0.575 | F29: 0.5537930327 | G29: 0.58 | H29: n/a | I29: 0.5832047609 | J29: 0.555649449 | K29: 0.5506097344 | L29: 0.5207209521 | M29: 0.51 | N29: 0.4919430125 | O29: 0.4727453317 | P29: 0.4514670957
B30: Trent7 | D30: 0.62 | E30: 0.596 | F30: 0.5482472672 | G30: 0.5492199617 | H30: 0.574 | I30: 0.5870773288 | J30: 0.5242685026 | K30: 0.5007826015 | L30: 0.4947282387 | M30: 0.48 | N30: 0.4713618677 | O30: 0.4645617617 | P30: 0.4547359295
B31: West Midlands | C31: 0.57 | D31: 0.55 | E31: 0.537 | F31: 0.5244 | G31: 0.53 | H31: 0.55 | I31: 0.54 | J31: 0.52 | K31: 0.5105987055 | L31: 0.5041342217 | M31: 0.49 | N31: 0.4984173551 | O31: 0.49 | P31: 0.48
A32: Scotland | C32: 0.584 | D32: 0.555 | E32: 0.558 | F32: 0.5615265998 | G32: 0.5452233111 | H32: 0.553 | I32: 0.5748582084 | J32: 0.5472025336 | K32: 0.5564173316 | L32: 0.524975025 | M32: 0.54 | N32: 0.5344457176 | O32: 0.5117386866 | P32: 0.4913964262
A33: Wales8 | D33: 0.56 | E33: 0.569 | F33: 0.5694 | G33: 0.5237 | H33: 0.5562210727 | I33: 0.5339185954 | J33: 0.5113099042 | K33: 0.493931137 | L33: 0.5 | M33: 0.49 | N33: 0.49 | O33: 0.4712280702 | P33: 0.4572649573
A34: Northern Ireland9 | G34: 0.52 | H34: 0.5251840943 | I34: 0.5 | J34: 0.53 | K34: 0.49 | L34: 0.52 | M34: 0.5 | N34: 0.48 | O34: 0.46 | P34: 0.46
A35: UK10 Average | C35: 0.6026739815 | D35: 0.5846939088 | E35: 0.5741681448 | F35: 0.5512415857 | G35: 0.5414386612 | H35: 0.5423669061 | I35: 0.5470229995 | J35: 0.5162352574 | K35: 0.5094778508 | L35: 0.508304258 | M35: 0.5 | N35: =(SUM(N24:N34))/11 -> 0.4971516321 | O35: =(SUM(O24:O34))/11 -> 0.4767421682 | P35: =(SUM(P24:P34))/11 -> 0.4622604008
A37: 1 | B37: Most, but not all, registries' analysis is of the diagnosis year two years prior to report publish year
A38: 2 | B38: Thames did not receive any mortality data in 2001 and so were excluded from the england average for 2001 registrations in the 2003 report
A39: 3 | B39: Reports from 2007 reflect the boundary change between Eastern and Thames where Eastern includes Hertfordshire and Essex from 2007 onwards
A40: 4 | B40: Thames did not receive any mortality data in 2001 and so an average cannot be obtained for the new combined area of Eastern or figures presented for Thames
A41: 5 | B41: For all reports, the figures for NWCIS were produced by multiplying the office area-specific estimates for the old MCCR (NWCIS: Liverpool) and NWCR (NWCIS: Manchester) registries by the proportions of ONS Ready cases reported for each area for each year
A42: 6 | B42: For 1998, 1999 and 2000 reports the separate estimates for Northern and Yorkshire registries have been averaged
A43: 7 | B43: In 1998 Trent submitted data for 1997 registrations, which was too soon after the calendar year was completed so the figures are not shown
A44: 8 | B44: Wales did not submit any data until the report published in 1999
A45: 9 | B45: Northern Ireland did not submit any data until the report published in 2002
A46: 10 | B46: GB average prior to 2002; England & Scotland average in 1998 report

Sheet Table 10a
A1: TABLE 10A: | C1: Trends in completeness of the dataset - demographics and diagnostic details
A3: Completeness of the dataset (UK Average1)
A4: This table shows the % of cases with a Valid Known code on the database
B6: Dataset variable | C6: Year report published 1
C7: 1998 | D7: 1999 | E7: 2000 | F7: 2001 | G7: 2002 | H7: 2003 | I7: 2004 | J7: 2005 | K7: 2006 | L7: 2007 | M7: 2008 | N7: 2009 | O7: 2010 | P7: 2011
B8: Patient's name | C8: 99.998 | D8: 99.98833333 | E8: 99.99833333 | F8: 99.99884851 | G8: 99.94545455 | H8: 99.93506285 | I8: 99.98232932 | J8: 100 | K8: 99.99825492 | L8: 99.99833237 | M8: 99.99692886 | N8: 100 | O8: 100 | P8: 100
B9: Patient's address | C9: 99.37777778 | D9: 99.77363636 | E9: 99.96262754 | F9: 99.71201689 | G9: 99.6307066 | H9: 96.33162142 | I9: 99.70182076 | J9: 99.78303477 | K9: 99.84702567 | L9: 99.80830616 | M9: 99.91510126 | N9: 99.88987793 | O9: 99.80969249 | P9: 99.90696197
B10: Sex | C10: 99.98869996 | D10: 99.99166667 | E10: 100 | F10: 99.9995152 | G10: 99.99869124 | H10: 99.99725787 | I10: 100 | J10: 99.99166667 | K10: 99.99808436 | L10: 99.99784829 | M10: 99.98181818 | N10: 99.99454545 | O10: 100 | P10: 100
B11: Ethnicity | K11: 27.54299753 | L11: 38.43948913 | M11: 50.22102618 | N11: 50.02899368 | O11: 42.72199766 | P11: 54.24887695
B12: Date of death (where dead) | C12: 99.97160494 | D12: 99.93544348 | E12: 99.94554474 | F12: 99.8613748 | G12: 99.97454545 | H12: 99.96206872 | I12: 99.96961296 | J12: 99.98118951 | K12: 99.98807032 | L12: 99.97097452 | M12: 99.99204645 | N12: 100 | O12: 100 | P12: 100
B13: Post code | C13: 99.54250838 | D13: 99.15044547 | E13: 99.69166667 | F13: 99.38571563 | G13: 99.48082182 | H13: 99.5 | I13: 99.56618341 | J13: 98.86538141 | K13: 99.79162334 | L13: 99.66034217 | M13: 99.79071656 | N13: 99.87605036 | O13: 99.82981926 | P13: 99.79909091
B14: Date of birth | C14: 99.60858881 | D14: 99.9731394 | E14: 99.95153533 | F14: 99.97381904 | G14: 99.99090909 | H14: 99.99324333 | I14: 100 | J14: 100 | K14: 99.99166667 | L14: 100 | M14: 100 | N14: 100 | O14: 100 | P14: 100
B15: Unique Health Identifier 3 | C15: 30.6244446 | D15: 42.01084214 | E15: 56.04579041 | F15: 71.1550296 | G15: 76.11305797 | H15: 70.32488076 | I15: 88.6990624 | J15: 92.47821215 | K15: 94.18770686 | L15: 95.42138793 | M15: 96.75191216 | N15: 99.01412755 | O15: 99.51068192 | P15: 99.66601989
B16: NHS number (England Only) | G16: 79.70562641 | H16: 82.6485967 | I16: 95.93806268 | J16: 98.6118494 | K16: 98.4149709 | L16: 99.12784688 | M16: 98.9875 | N16: 99.55203834 | O16: 99.69424452 | P16: 99.82683401
B17: Anniversary (diagnosis) date | C17: 99.3677117 | D17: 99.39632679 | E17: 99.41291477 | F17: 99.78181818 | G17: 99.73636364 | H17: 99.75833333 | I17: 99.81666667 | J17: 99.825 | K17: 99.775 | L17: 99.71362413 | M17: 99.71329702 | N17: 99.64443126 | O17: 99.78159875 | P17: 99.84707121
B18: Site of primary growth | C18: 97.38815733 | D18: 93.88629054 | E18: 94.37300411 | F18: 94.48917807 | G18: 94.69870426 | H18: 94.43153248 | I18: 95.0933699 | J18: 95.00365301 | K18: 95.60422727 | L18: 96.13154542 | M18: 96.19910881 | N18: 96.38714921 | O18: 96.37316187 | P18: 96.6772651
B19: Type of growth | C19: 85.13894391 | D19: 79.6786239 | E19: 82.14847611 | F19: 82.08411562 | G19: 82.95493503 | H19: 83.95425861 | I19: 84.56409417 | J19: 86.75582174 | K19: 87.73691353 | L19: 88.55581039 | M19: 87.42388612 | N19: 88.42212598 | O19: 86.86478681 | P19: 86.41167271
B20: Behaviour of growth | C20: 94.95612902 | D20: 99.06270318 | E20: 98.49754251 | F20: 99.66101637 | G20: 99.61833447 | H20: 97.7667515 | I20: 98.38880738 | J20: 99.04410061 | K20: 99.66379308 | L20: 99.93234799 | M20: 99.93074883 | N20: 99.83318127 | O20: 99.41174025 | P20: 99.76280115
B21: Basis of diagnosis | C21: 91.60776675 | D21: 94.00580347 | E21: 94.48376585 | F21: 94.94439299 | G21: 93.13211263 | H21: 94.05470984 | I21: 94.35458268 | J21: 95.84807606 | K21: 96.49013615 | L21: 97.46631275 | M21: 97.74310981 | N21: 98.61118168 | O21: 98.84642325 | P21: 98.68570117
A23: 1 | B23: UK average for 2003; GB average prior to 2003; England & Scotland average in 1998 report
A24: 2 | B24: For most, but not all registries, the analysis is of the diagnosis year two years prior to report publish year
A25: 3 | B25: NHS Number for England and Wales; CHI for Scotland and Health and Social Care Number for Northern Ireland

Sheet Table 10b
A1: TABLE 10B: | C1: Trends in completeness of the dataset - treatment and prognostic tumour details
A3: Completeness of the dataset (UK Average1)
A4: This table shows the % of cases with a Valid Known code on the database
B6: Dataset variable | C6: Year report published 1
C7: 1998 | D7: 1999 | E7: 2000 | F7: 2001 | G7: 2002 | H7: 2003 | I7: 2004 | J7: 2005 | K7: 2006 | L7: 2007 | M7: 2008 | N7: 2009 | O7: 2010 | P7: 2011
B8: Treatment codes (% yes) 3
B9: All xnmsc - Therapeutic surgery | D9: 50.9274429 | E9: 48.2549809 | F9: 42.40223432 | G9: 46.07264324 | H9: 49.34952302 | I9: 45.21076804 | J9: 44.95838625 | K9: 43.20826032 | L9: 43.97178036 | M9: 45.60909091 | N9: 45.72319468 | O9: 47.33871255 | P9: 45.76365795
B10: All xnmsc - Radiotherapy 4 | D10: 22.41650817 | E10: 22.66756412 | F10: 22.04115373 | G10: 18.91249927 | H10: 14.89183472 | I10: 16.79553729 | J10: 18.29883707 | K10: 18.13192647 | L10: 17.94013642 | M10: 17.76 | N10: 16.39464238 | O10: 16.13629626 | P10: 17.88678517
B11: All xnmsc - Chemotherapy | D11: 11.41190984 | E11: 15.50911928 | F11: 15.877274 | G11: 16.61497011 | H11: 14.78670151 | I11: 15.8297061 | J11: 16.89726664 | K11: 18.83088094 | L11: 19.35856254 | M11: 19.50909091 | N11: 21.12077164 | O11: 23.53970731 | P11: 25.0394519
B13: Grade - Breast cancer only 5 | C13: 49.12443016 | D13: 62.47250848 | E13: 65.49005027 | F13: 72.3938216 | G13: 73.05313531 | H13: 73.94159762 | I13: 76.43235668 | J13: 78.85456919 | K13: 78.45296812 | L13: 76.39333097 | M13: 83.01308218 | N13: 86.25310998 | O13: 87.51540397 | P13: 89.48335443
A15: 1 | B15: UK average for 2003; GB average prior to 2003; England & Scotland average in 1998 report
A16: 2 | B16: For most, but not all registries, the analysis is of the diagnosis year two years prior to report publish year
A17: 3 | B17: The definition of treatment was changed between the 1998 and 1999 report so the data for 1998 report is not shown. Hormone treatment has not been shown as the definition was changed again in the 2007 report
A18: 4 | B18: Wales received radiotherapy data from 2009 and so the UK average pre 2009 excludes Wales for radiotherapy
A19: 5 | B19: Only grade for breast cancer has been shown, and the staging information been removed from the table since the definitions for which staging data should be collected/presented have changed in the 2007 report
